{"text_format":"1","workbook":"xlsx","n_sheets":8,"sheets":["PORTADA","INSTRUCCIONES","INFORMACION GENERAL","ANÁLISIS PARTICIPATIVO","CONSOLIDADO ANÁLISIS","FORMATO DE CAMPO","PLAN DE ACCIÓN","PONDERACIONES"],"not_rendered":{"charts":5,"images":6,"macros":1,"external_links":2,"defined_names":21,"comments":0,"pivot_tables":1},"unopened":[],"bounds":{"document_bytes":16777216,"sheet_cells":100000,"rows_first":2000,"rows_last":500,"rows_between":2000,"halvings":0,"cell_chars":16384,"cell_head_chars":4096},"cells_cut":0,"cells_raw":0,"read":"whole","date_system":"1900"}

{"sheet":"PORTADA","index":0,"n_rows":0,"n_cols":0,"rows_kept":0,"cut":false,"hidden":false,"merged":[]}

{"sheet":"INSTRUCCIONES","index":1,"n_rows":26,"n_cols":8,"rows_kept":26,"cut":false,"hidden":false,"merged":[[14,6,15,6],[23,1,23,8],[25,1,25,8],[2,2,2,7],[1,0,1,8],[17,1,17,8],[5,0,17,0],[19,1,19,8],[21,1,21,8],[3,1,3,8],[5,1,5,8],[6,1,6,8],[14,7,15,7],[4,2,4,7],[8,3,8,6],[11,1,11,8],[13,2,13,7]]}
[]
["Herramienta de Evaluación Profunda\nInstrucciones"]
[]
["Metodología","Visita a las instalaciones, aplicación de la herramienta de evaluación profunda con la participación de los trabajadores (preferiblemente expertos, aunque también es posible la participación de los no expertos y llegar a consenso entre los dos), supervisores o jefes y responsables del diseño y mejoramiento de los procesos donde se detectaron las tareas más críticas por MMC"]
[]
["Paso a paso","Tras informar al Director, Coordinador o Encargado SST las actividades que deben ser objeto de la Evaluación Profunda, gestione la programación de nuevas visitas de al menos seis a ocho horas por cada tarea a evaluar y teniendo en cuenta los actores que deben convocarse con anterioridad. \n\nInforme al Director, Coordinador o Encargado SST, que se realizará la aplicación de la herramienta EVALUACIÓN PROFUNDA DE LA PROBLEMÁTICA POR MMC, bajo el siguiente orden:\n\n• Observación y conocimiento de la tarea en detalle, realizando registros de video y consultando información con los trabajadores y el supervisor\n• Aplicación de la herramienta a trabajadores en un espacio donde pueda sostenerse la entrevista sin interrupciones o influencia de supervisores y jefes\n• Aplicación de la herramienta únicamente con el supervisor o jefe\n• Aplicación de la herramienta únicamente con el responsable del diseño y mejoramiento del proceso\n• Consolidación de la información\n\nPrograme por cada tarea crítica una reunión adicional de  2 horas para socializar las opiniones con los diferentes actores invitados y definir las estrategias de intervención a considerar, que deben traducirse en un plan de trabajo formal.\n\nPara la aplicación de la herramienta EVALUACIÓN PROFUNDA DE LA PROBLEMÁTICA POR MMC puede imprimir el Formato de campo desde el archivo Excel, aunque lo mejor es diligenciar la información directamente en la versión Excel para optimizar el tiempo.\nDiligencie la información general de la Empresa: Razón Social, NIT, fecha de aplicación de la herramienta, dirección y teléfono principal, así como el municipio."]
[null,"Luego, la información general de la tarea a evaluar, es decir el nombre de la tarea y proceso que plasmó en la HERRAMIENTA DE DIAGNÓSTICO RÁPIDO INICIAL. Registre además los apellidos, nombres y cargo del supervisor o jefe y responsable del diseño y mejoramiento del proceso donde se evaluará la tarea.\n\nDescriba en detalle y de manera cronológica la tarea crítica por MMC y, registre un video o tome fotografías que soporten dicha descripción.\n\nContinúe con el análisis participativo entrevistando a cada uno de los actores por separado, preferiblemente en un espacio sin distracciones y siguiendo el orden de los actores que relaciona el formato, es decir, primero los trabajadores, luego supervisores y jefes y posteriormente responsables del diseño y mejoramiento del proceso.\n\nEn su momento explique a cada uno de ellos el enfoque participativo de la evaluación, fundamentado en las determinantes del sistema de trabajo organizacional, humano, tecnológico y ambiental, citando ejemplos acerca de lo que abarca cada uno de estos aspectos y su importancia.\n\nAplique con cada uno de ellos la herramienta, teniendo en cuenta revisar cada una de las variables estimadas en cada determinante, registrando su opinión respecto a la frecuencia de ocurrencia de cada una de ellas, según la ponderación del correspondiente formato, sea en términos cualitativos o cuantitativos (horas o porcentajes de exposición). \n\nTenga en cuenta que las valoraciones cualitativas corresponden a las variables de las determinantes Organizacional y Humana, con las siguientes opciones de selección:"]
[]
[null,null,null,"Valoraciones cualitativas"]
[null,null,null,"Sí, siempre","Parcialmente","No, nunca","No aplica"]
[]
[null,"\nLas valoraciones cuantitativas corresponden a las variables de las determinantes Tecnológica y Ambiental, teniendo como opciones de selección:\n"]
[]
[null,null,"Valoraciones cuantitativas"]
[null,null,">=7 horas",">=4 y < 7 horas",">=2 y < 4 horas","< 2 horas","No, nunca","No aplica"]
[null,null,">90% del tiempo","50% a 89% del tiempo","25% a 49% del tiempo","1% a 24% del tiempo"]
[]
[null,"Es importante registrar observaciones y conclusiones alusivas a cada variable si la respuesta de alguno de los actores lo amerita, diligenciando las columnas \"Observaciones y conclusiones\" y Estrategias de intervención sugeridas por los actores\"  del Formato de campo o de la versión digital.\n\n\nEn el momento que exponga cada variable a evaluar si lo requiere, fundamente su discurso, para facilitar la comprensión de los participantes.\n\nCulmine la aplicación de la herramienta respondiendo bajo su concepto de evaluador cada una de las variables y formulando sus respectivas conclusiones y recomendaciones, en la columna denominada \"Estrategias de intervención sugeridas por especialista\", teniendo en cuenta la información obtenida en campo y las respuestas de los demás actores.\n\nSi registró los datos en Formatos de campo imprimibles, digitalice toda la información en el archivo Excel de la herramienta de EVALUACIÓN PROFUNDA. Recuerde que en primera instancia solo deberá diligenciar las pestañas de Información general de la actividad y Análisis participativo.\n\nSocialice la información obtenida con la aplicación de la herramienta mediante reunión con los diferentes actores participantes. Inicialmente presente los resultados conforme a la pestaña llamada Consolidado Análisis.\n\nContinúe la socialización presentando las conclusiones y propuestas más relevantes de la pestaña de Análisis participativo, estimando en consenso las estrategias de mayor viabilidad que estarían al alcance de la empresa. Diligencie esta información en la columna del formato digital denominada estrategias de intervención avaladas para plan de acción y cuando termine, pase a la pestaña Plan de acción, donde debe seguir las indicaciones allí descritas para que se configure el formato con las estrategias estimadas como viables y pueda definirse para cada una de ellas Responsable, Cargo, Área, fecha de implementación y seguimiento, estado de implementación y observaciones.\n\nPreferiblemente imprima el plan de trabajo y hagalo firmar por los actores de la tarea y la Gerencia."]
[]
["Actores Invitados y roles","Trabajadores, supervisores o jefes: Suministrarán información verídica sobre las condiciones de trabajo y estarán atentos a corroborar cualquier dato, así como formular ideas de posibilidades de mejoramiento según se vaya aplicando la herramienta.\n\nResponsable del diseño y mejoramiento del proceso donde se evalúa la tarea: Suministrará información verídica sobre las condiciones de trabajo, estará atento a corroborar cualquier dato, formulará ideas de posibilidades de mejoramiento y determinará las estrategias de intervención viables a implementar para ser plasmadas en el correspondiente plan de acción y liderará la ejecución de este último.\n\nDirector, Coordinador o Encargado SST: Informará a trabajadores, supervisores y directores de área, sobre la ejecución y alcance de la Evaluación profunda; facilitará el acceso del evaluador a las áreas que se requieran y la comunicación con los actores invitados; estará atento a corroborar cualquier dato, así como formular ideas de posibilidades de mejoramiento y auditará el cumplimiento del plan de acción dentro de las fechas pactadas."]
[]
["Tiempo requerido","6 a 8 horas en campo, 4 horas de informe. Total 10 a 12 horas"]
[]
["Recursos","Papelería, Cámara digital, Flexómetro, Elementos de protección personal, computador, sala de reuniones, video beam."]
[]
["Profesional asignado","Profesional especialista en salud ocupacional, entrenado en la aplicación de las herramientas y preferiblemente con experiencia en ergonomía "]

{"sheet":"INFORMACION GENERAL","index":2,"n_rows":21,"n_cols":31,"rows_kept":21,"cut":false,"hidden":false,"merged":[[0,0,0,33],[1,0,1,33],[3,0,3,33],[5,0,5,3],[5,4,5,16],[5,31,5,33],[5,23,5,25],[5,27,5,30],[5,18,5,22],[7,18,7,22],[10,0,10,33],[12,21,12,33],[12,0,12,3],[12,4,12,12],[7,4,7,16],[7,0,7,3],[7,27,7,30],[7,31,7,33],[12,14,12,20],[7,23,7,25],[24,9,24,21],[24,23,24,33],[17,0,18,33],[20,0,20,33],[14,16,14,20],[22,23,23,33],[22,9,23,21],[22,0,23,7],[14,32,14,33],[14,21,14,28],[16,0,16,33],[14,0,14,3],[14,4,14,7],[14,30,14,31],[24,0,24,7],[34,23,35,33],[36,0,36,7],[38,0,39,7],[38,9,39,21],[38,23,39,33],[34,9,35,21],[34,0,35,7],[28,0,28,7],[30,23,31,33],[25,0,25,33],[29,0,29,33],[26,0,27,7],[26,9,27,21],[28,9,28,21],[28,23,28,33],[26,23,27,33],[30,9,31,21],[30,0,31,7],[42,9,43,21],[42,23,43,33],[41,0,41,33],[36,9,36,21],[36,23,36,33],[37,0,37,33],[40,0,40,7],[40,9,40,21],[40,23,40,33],[10,35,10,38],[46,0,47,7],[46,9,47,21],[46,23,47,33],[48,0,48,7],[48,9,48,21],[48,23,48,33],[32,0,32,7],[32,9,32,21],[32,23,32,33],[45,0,45,33],[14,10,14,14],[44,0,44,7],[44,9,44,21],[44,23,44,33],[42,0,43,7]]}
[]
["Herramienta de Evaluación Profunda\nRegistro de Información General"]
[]
["INFORMACIÓN GENERAL DE LA EMPRESA"]
[]
["Razón Social",null,null,null,null,null,null,null,null,null,null,null,null,null,null,null,null,null,"NIT",null,null,null,null,null,null,null,null,"Fecha de evaluación"]
[]
["Dirección",null,null,null,null,null,null,null,null,null,null,null,null,null,null,null,null,null,"Teléfonos",null,null,null,null,null,null,null,null,"Municipio"]
[]
[]
["INFORMACIÓN GENERAL DE LA TAREA CRÍTICA A EVALUAR"]
[]
["Nombre de la tarea crítica por  manipulación manual de cargas",null,null,null,null,null,null,null,null,null,null,null,null,null,"Nombre del proceso crítico"]
[]
["Apellidos y nombres del trabajador que supervisa la tarea crítica",null,null,null,null,null,null,null,null,"Cargo",null,null,null,null,null,null,"Apellidos y nombres del trabajador responsable de diseño y mejoramiento de procesos",null,null,null,null,null,null,null,null,null,null,null,null,null,"Cargo"]
[]
["Descripción de la tarea crítica por manipulación manual de cargas "]
[]
[]
[]
["Material fotográfico e imágenes de la tarea crítica"]

{"sheet":"ANÁLISIS PARTICIPATIVO","index":3,"n_rows":58,"n_cols":45,"rows_kept":58,"cut":false,"hidden":false,"merged":[[22,4,22,6],[22,13,22,15],[22,22,22,24],[22,31,22,33],[25,4,25,6],[25,13,25,15],[25,22,25,24],[25,31,25,33],[23,4,23,6],[23,13,23,15],[23,22,23,24],[23,31,23,33],[24,4,24,6],[24,13,24,15],[24,22,24,24],[24,31,24,33],[20,4,20,6],[20,13,20,15],[20,22,20,24],[20,31,20,33],[21,4,21,6],[21,13,21,15],[21,22,21,24],[21,31,21,33],[18,4,18,6],[18,13,18,15],[18,22,18,24],[18,31,18,33],[19,4,19,6],[19,13,19,15],[19,22,19,24],[19,31,19,33],[16,4,16,6],[16,13,16,15],[16,22,16,24],[16,31,16,33],[17,4,17,6],[17,13,17,15],[17,22,17,24],[17,31,17,33],[14,4,14,6],[14,13,14,15],[14,22,14,24],[14,31,14,33],[15,4,15,6],[15,13,15,15],[15,22,15,24],[15,31,15,33],[12,4,12,6],[12,13,12,15],[12,22,12,24],[12,31,12,33],[13,4,13,6],[13,13,13,15],[13,22,13,24],[13,31,13,33],[10,4,10,6],[10,13,10,15],[10,22,10,24],[10,31,10,33],[11,4,11,6],[11,13,11,15],[11,22,11,24],[11,31,11,33],[8,31,8,33],[9,4,9,6],[9,13,9,15],[9,22,9,24],[9,31,9,33],[0,0,0,40],[3,0,3,2],[3,3,3,18],[6,12,6,20],[6,21,6,29],[5,30,6,38],[5,3,5,29],[3,43,3,44],[1,0,1,44],[3,23,3,32],[3,33,3,40],[47,0,57,0],[27,0,46,0],[6,3,6,11],[8,0,23,0],[24,0,25,0],[7,4,7,6],[7,13,7,15],[7,22,7,24],[7,31,7,33],[8,4,8,6],[8,13,8,15],[8,22,8,24]]}
[]
["Herramienta de Evaluación Profunda\nAnálisis Participativo"]
[]
[{"$f":"'INFORMACION GENERAL'!A6","v":"Razón Social"},null,null,{"$f":"'INFORMACION GENERAL'!E6","v":0},null,null,null,null,null,null,null,null,null,null,null,null,null,null,null,null,null,null,null,{"$f":"'INFORMACION GENERAL'!O13","v":"Nombre del proceso crítico"},null,null,null,null,null,null,null,null,null,{"$f":"'INFORMACION GENERAL'!V13","v":0},null,null,null,null,null,null,null,null,{"$f":"'INFORMACION GENERAL'!A13","v":"Nombre de la tarea crítica por  manipulación manual de cargas"},{"$f":"'INFORMACION GENERAL'!E13","v":0}]
[]
[null,null,null,"ACTORES DE LA TAREA",null,null,null,null,null,null,null,null,null,null,null,null,null,null,null,null,null,null,null,null,null,null,null,null,null,null,"ESPECIALISTA EN ERGONOMÍA"]
[null,null,null,"TRABAJADOR EXPERTO",null,null,null,null,null,null,null,null,"SUPERVISOR O JEFE",null,null,null,null,null,null,null,null,"RESPONSABLE DISEÑO Y MEJORAMIENTO DEL PROCESO"]
[null,null,"VARIABLES A EVALUAR","Sí, siempre","Parcialmente",null,null,null,null,"No, nunca",null,"No aplica","Sí, siempre","Parcialmente",null,null,null,null,"No, nunca",null,"No aplica","Sí, siempre","Parcialmente",null,null,null,null,"No, nunca",null,"No aplica","Sí, siempre","Parcialmente",null,null,null,null,"No, nunca",null,"No aplica","TOTAL","PRIORIDAD DE LA INTERVENCIÓN SEGÚN CALIFICACIÓN","OBSERVACIONES Y CONCLUSIONES","ESTRATEGIAS DE INTERVENCIÓN SUGERIDAS POR ACTORES DE LA TAREA","ESTRATEGIAS DE INTERVENCIÓN SUGERIDAS POR ESPECIALISTA EN ERGONOMÍA","ESTRATEGIAS DE INTERVENCIÓN AVALADAS PARA PLAN DE ACCIÓN"]
["DETERMINANTE ORGANIZACIONAL",1,"Hay una política de Seguridad y Salud en el trabajo, que se ve reflejada en la asignación de recursos para las intervenciones dirigidas a mitigar la problemática por MMC",null,null,null,null,null,null,null,null,null,null,null,null,null,null,null,null,null,null,null,null,null,null,null,null,null,null,null,null,null,null,null,{"$f":"IF(AE9=0,\"0\",IF(AE9=\"X\",\"1\"))","v":"0"},{"$f":"IF(AF9=0,\"0\",IF(AF9=\"X\",\"2\"))","v":"0"},null,{"$f":"IF(AK9=0,\"0\",IF(AK9=\"X\",\"3\"))","v":"0"},null,{"$f":"H9+I9+K9+Q9+R9+T9+Z9+AA9+AC9+AI9+AJ9+AL9","v":0},{"$f":"IF(AN9<=4,\"BAJA\",IF(AN9<=8,\"MEDIA\",IF(AN9<=11,\"ALTA\",IF(AN9<=12,\"MUY ALTA\",))))","v":"BAJA"}]
[null,2,"Se mantiene actualizada (últimos 6 meses) la información de las condiciones de salud músculo esquelética de los trabajadores expuestos y de las condiciones  de trabajo en donde se ejecutan tareas críticas por MMC",null,null,null,null,null,null,null,null,null,null,null,null,null,null,null,null,null,null,null,null,null,null,null,null,null,null,null,null,null,null,null,{"$f":"IF(AE10=0,\"0\",IF(AE10=\"X\",\"1\"))","v":"0"},{"$f":"IF(AF10=0,\"0\",IF(AF10=\"X\",\"2\"))","v":"0"},null,{"$f":"IF(AK10=0,\"0\",IF(AK10=\"X\",\"3\"))","v":"0"},null,{"$f":"H10+I10+K10+Q10+R10+T10+Z10+AA10+AC10+AI10+AJ10+AL10","v":0},{"$f":"IF(AN10<=4,\"BAJA\",IF(AN10<=8,\"MEDIA\",IF(AN10<=11,\"ALTA\",IF(AN10<=12,\"MUY ALTA\",))))","v":"BAJA"}]
[null,3,"Los supervisores y/o jefes de área conocen los procedimientos de seguridad para MMC y velan por su cumplimiento",null,null,null,null,null,null,null,null,null,null,null,null,null,null,null,null,null,null,null,null,null,null,null,null,null,null,null,null,null,null,null,"0","0",null,"0",null,0,"BAJA"]
[null,4,"La  asignación de trabajadores  en el área es suficiente y/o se ajusta la asignación de tareas, de manera que se atienden oportunamente los picos de producción",null,null,null,null,null,null,null,null,null,null,null,null,null,null,null,null,null,null,null,null,null,null,null,null,null,null,null,null,null,null,null,"0","0",null,"0",null,0,"BAJA"]
[null,5,"La tarea es ejecutada por personal de contratación directa.",null,null,null,null,null,null,null,null,null,null,null,null,null,null,null,null,null,null,null,null,null,null,null,null,null,null,null,null,null,null,null,"0","0",null,"0",null,0,"BAJA"]
[null,6,"La organización del proceso permite la alternancia de la tarea crítica por MMC y otros tipos de tareas, permitiendo la recuperación física de los expuestos",null,null,null,null,null,null,null,null,null,null,null,null,null,null,null,null,null,null,null,null,null,null,null,null,null,null,null,null,null,null,null,"0","0",null,"0",null,0,"BAJA"]
[null,7,"Existe planeación en aspectos relacionados con la distribución de material en planta, condiciones de almacenamiento y ayudas tecnológicas que disminuyan la exposición a MMC",null,null,null,null,null,null,null,null,null,null,null,null,null,null,null,null,null,null,null,null,null,null,null,null,null,null,null,null,null,null,null,"0","0",null,"0",null,0,"BAJA"]
[null,8,"Existe un programa de mantenimiento predictivo y/o preventivo que garantice el  adecuado  funcionamiento de las ayudas tecnológicas ",null,null,null,null,null,null,null,null,null,null,null,null,null,null,null,null,null,null,null,null,null,null,null,null,null,null,null,null,null,null,null,"0","0",null,"0",null,0,"BAJA"]
[null,9,"Se documentan requerimientos ergonómicos en los procedimientos de selección y adquisición contenidos en el programa de elementos de protección personal y dotación",null,null,null,null,null,null,null,null,null,null,null,null,null,null,null,null,null,null,null,null,null,null,null,null,null,null,null,null,null,null,null,"0","0",null,"0",null,0,"BAJA"]
[null,10,"Los trabajadores expertos participan en la solución de problemas relacionados con la MMC",null,null,null,null,null,null,null,null,null,null,null,null,null,null,null,null,null,null,null,null,null,null,null,null,null,null,null,null,null,null,null,"0","0",null,"0",null,0,"BAJA"]
[null,11,"Se realizan exámenes médicos ocupacionales con énfasis en evaluación clínica de los desórdenes músculo esqueléticos de columna y miembros superiores",null,null,null,null,null,null,null,null,null,null,null,null,null,null,null,null,null,null,null,null,null,null,null,null,null,null,null,null,null,null,null,"0","0",null,"0",null,0,"BAJA"]
[null,12,"Se realizan evaluaciones de las cualidades físicas (fuerza, flexibilidad, resistencia cardiovascular) ",null,null,null,null,null,null,null,null,null,null,null,null,null,null,null,null,null,null,null,null,null,null,null,null,null,null,null,null,null,null,null,"0","0",null,"0",null,0,"BAJA"]
[null,13,"Se  selecciona la población que ejecutará la tarea crítica, conforme a un perfil ocupacional específico",null,null,null,null,null,null,null,null,null,null,null,null,null,null,null,null,null,null,null,null,null,null,null,null,null,null,null,null,null,null,null,"0","0",null,"0",null,0,"BAJA"]
[null,14,"Se implementan  estrategias de formación en la prevención de DME y AT por MMC ",null,null,null,null,null,null,null,null,null,null,null,null,null,null,null,null,null,null,null,null,null,null,null,null,null,null,null,null,null,null,null,"0","0",null,"0",null,0,"BAJA"]
[null,15,"El ritmo de trabajo de los procesos que involucran MMC puede ser controlado por el trabajador",null,null,null,null,null,null,null,null,null,null,null,null,null,null,null,null,null,null,null,null,null,null,null,null,null,null,null,null,null,null,null,"0","0",null,"0",null,0,"BAJA"]
[null,16,"Se consideran las siguientes directrices al asignar actividades de MMC a mujeres como:\n\n*Mujeres en estado de embarazo: Actividades con ausencia o muy baja exigencia de MMC (<5Kg.)\n*Mujeres hasta de 18 años (<=8Kg.)\n*Mujeres de 18 años y más (<=12 Kg.)",null,null,null,null,null,null,null,null,null,null,null,null,null,null,null,null,null,null,null,null,null,null,null,null,null,null,null,null,null,null,null,"0","0",null,"0",null,0,"BAJA"]
["DETERMINANTE HUMANA",17,"Los trabajadores demuestran estar entrenados y poseer conocimiento suficiente para desempeñar de forma segura la tarea crítica",null,null,null,null,null,null,null,null,null,null,null,null,null,null,null,null,null,null,null,null,null,null,null,null,null,null,null,null,null,null,null,null,null,null,"0",null,0,"BAJA"]
[null,18,"El trabajador está entrenado y sabe como planificar con suficiente anticipación las tareas de MMC que demandan trabajo en equipo, para ejecutarlas en condiciones seguras",null,null,null,null,null,null,null,null,null,null,null,null,null,null,null,null,null,null,null,null,null,null,null,null,null,null,null,null,null,null,null,null,null,null,"0",null,0,"BAJA",null,null,null,"Implementar plan de entrenamiento en biomecánica, contextualizado con la realidad de la actividad, determinando los momentos críticos en los que será obligatorio el trabajo en equipo."]
[null,null,null," =o>7 horas\n>90% del tiempo"," >=4 y < 7 horas\n50% a 89% del tiempo"," >=2 y < 4 horas\n25% a 49% del tiempo"," < 2 horas\n1% a 24% del tiempo",null,null,"No, nunca",null,"No aplica"," =o>7 horas\n>90% del tiempo"," >=4 y < 7 horas\n50% a 89% del tiempo"," >=2 y < 4 horas\n25% a 49% del tiempo"," < 2 horas\n1% a 24% del tiempo",null,null,"No, nunca",null,"No aplica"," =o>7 horas\n>90% del tiempo"," >=4 y < 7 horas\n50% a 89% del tiempo"," >=2 y < 4 horas\n25% a 49% del tiempo"," < 2 horas\n1% a 24% del tiempo",null,null,"No, nunca",null,"No aplica"," =o>7 horas\n>90% del tiempo"," >=4 y < 7 horas\n50% a 89% del tiempo"," >=2 y < 4 horas\n25% a 49% del tiempo"," < 2 horas\n1% a 24% del tiempo",null,null,"No, nunca",null,"No aplica","TOTAL"]
["DETERMINANTE TECNOLÓGICA",19,"El peso de las cargas a manipular manualmente son inferiores a 25 Kg. (hombres) y 12,5 Kg. (mujeres)",null,null,null,null,null,null,null,null,null,null,null,null,null,null,null,null,null,null,null,null,null,null,null,null,null,null,null,null,null,null,null,null,null,null,{"$f":"IF(AK28=0,\"0\",IF(AK28=\"X\",\"3\"))","v":"0"},null,{"$f":"H28+I28+K28+Q28+R28+T28+Z28+AA28+AC28+AI28+AJ28+AL28","v":0},{"$f":"IF(AN28<=4,\"BAJA\",IF(AN28<=8,\"MEDIA\",IF(AN28<=11,\"ALTA\",IF(AN28<=12,\"MUY ALTA\",))))","v":"BAJA"}]
[null,20,"Cuando la carga excede 25 Kg. (hombres) y 12,5 Kg. (mujeres), se emplean ayudas mecánicas que suplen eficientemente los momentos críticos de MMC",null,null,null,null,null,null,null,null,null,null,null,null,null,null,null,null,null,null,null,null,null,null,null,null,null,null,null,null,null,null,null,null,null,null,{"$f":"IF(AK29=0,\"0\",IF(AK29=\"X\",\"3\"))","v":"0"},null,{"$f":"H29+I29+K29+Q29+R29+T29+Z29+AA29+AC29+AI29+AJ29+AL29","v":0},{"$f":"IF(AN29<=4,\"BAJA\",IF(AN29<=8,\"MEDIA\",IF(AN29<=11,\"ALTA\",IF(AN29<=12,\"MUY ALTA\",))))","v":"BAJA"}]
[null,21,"Las cargas a manipular presentan tamaños acordes con los espacios de circulación y permiten la visibilidad de los pasillos a recorrer durante transporte de las mismas",null,null,null,null,null,null,null,null,null,null,null,null,null,null,null,null,null,null,null,null,null,null,null,null,null,null,null,null,null,null,null,null,null,null,"0",null,0,"BAJA"]
[null,22,"Las distancias de transporte de la carga son acordes con relación al peso y frecuencia de manipulación conforme  se recomienda en la NTC 5693-1",null,null,null,null,null,null,null,null,null,null,null,null,null,null,null,null,null,null,null,null,null,null,null,null,null,null,null,null,null,null,null,null,null,null,"0",null,0,"BAJA"]
[null,23,"Los puntos de origen y de destino de la carga se encuentran dentro del rango vertical comprendido entre 80 cm. y 130 cm. Así como a una distancia horizontal inferior a 45 cm. con respecto al cuerpo",null,null,null,null,null,null,null,null,null,null,null,null,null,null,null,null,null,null,null,null,null,null,null,null,null,null,null,null,null,null,null,null,null,null,"0",null,0,"BAJA"]
[null,24,"La disposición entre puntos de origen y de destino de la carga evita giros de tronco >45° y  permite el movimiento del cuerpo en bloque",null,null,null,null,null,null,null,null,null,null,null,null,null,null,null,null,null,null,null,null,null,null,null,null,null,null,null,null,null,null,null,null,null,null,"0",null,0,"BAJA"]
[null,25,"El volumen o dimensión de la carga en sentido horizontal permite mantener adecuada alineación postural de la columna y miembros superiores",null,null,null,null,null,null,null,null,null,null,null,null,null,null,null,null,null,null,null,null,null,null,null,null,null,null,null,null,null,null,null,null,null,null,"0",null,0,"BAJA"]
[null,26,"Las asas o partes para agarrar las unidades de carga a levantar y transportar presentan condiciones de diseño favorable,  conforme a los requerimientos estimados por NIOSH (altura a 100 cm., largo >12,7 cm., agarre a mano llena, exigencia de leves desviaciones de muñecas)",null,null,null,null,null,null,null,null,null,null,null,null,null,null,null,null,null,null,null,null,null,null,null,null,null,null,null,null,null,null,null,null,null,null,"0",null,0,"BAJA"]
[null,27,"Las cargas a manipular son estables (centro de gravedad no se desplaza)",null,null,null,null,null,null,null,null,null,null,null,null,null,null,null,null,null,null,null,null,null,null,null,null,null,null,null,null,null,null,null,null,null,null,"0",null,0,"BAJA"]
[null,28,"Las herramientas de manejo unimanual utilizadas para el desempeño de la actividad presentan pesos inferiores a 1 Kg.",null,null,null,null,null,null,null,null,null,null,null,null,null,null,null,null,null,null,null,null,null,null,null,null,null,null,null,null,null,null,null,null,null,null,"0",null,0,"BAJA"]
[null,29,"Si existen herramientas pesadas >2 Kg. su manipulación es bimanual y se encuentran ubicadas en soportes accesibles o suspendidas en sistemas balanceadores",null,null,null,null,null,null,null,null,null,null,null,null,null,null,null,null,null,null,null,null,null,null,null,null,null,null,null,null,null,null,null,null,null,null,"0",null,0,"BAJA"]
[null,30,"Las ayudas mecánicas presentan sistemas de fácil ajustabilidad que benefician la accesibilidad horizontal y vertical con relación a los puntos de agarre de las cargas",null,null,null,null,null,null,null,null,null,null,null,null,null,null,null,null,null,null,null,null,null,null,null,null,null,null,null,null,null,null,null,null,null,null,"0",null,0,"BAJA"]
[null,31,"Los carros transportadores de tracción manual presentan tamaños y capacidad para trasladar establemente la carga requerida sin que esta pueda sobredimensionarse",null,null,null,null,null,null,null,null,null,null,null,null,null,null,null,null,null,null,null,null,null,null,null,null,null,null,null,null,null,null,null,null,null,null,"0",null,0,"BAJA"]
[null,32,"Los carros transportadores de tracción manual han sido diseñados para ser empujados. La fuerza inicial y sostenida para empujarlos puede ejecutarse sin movimientos bruscos o en falso y, manteniendo los miembros superiores en ángulos confortables y los pies a menos de 100 cm. con respecto a los puntos de agarre",null,null,null,null,null,null,null,null,null,null,null,null,null,null,null,null,null,null,null,null,null,null,null,null,null,null,null,null,null,null,null,null,null,null,"0",null,0,"BAJA"]
[null,33,"Los carros transportadores de tracción manual presentan tamaños acordes con los espacios de desplazamiento de las instalaciones, facilitando la maniobrabilidad",null,null,null,null,null,null,null,null,null,null,null,null,null,null,null,null,null,null,null,null,null,null,null,null,null,null,null,null,null,null,null,null,null,null,"0",null,0,"BAJA"]
[null,34,"Los carros transportadores de tracción manual presentan bordes, aristas y esquinas redondeadas para reducir puntos de presión en las manos y disminuir la probabilidad de lesión en caso de un choque accidental.",null,null,null,null,null,null,null,null,null,null,null,null,null,null,null,null,null,null,null,null,null,null,null,null,null,null,null,null,null,null,null,null,null,null,"0",null,0,"BAJA"]
[null,35,"Los carros transportadores de tracción manual presentan manijas o asas a distancias inferiores al ancho del carro y se disponen en diferentes posiciones que permiten agarre a mano llena (involucrando palma de la mano, dedos y pulgar). Dimensiones: largo >12,7 cm. diámetro 0,38 cm. a 0,50 cm.",null,null,null,null,null,null,null,null,null,null,null,null,null,null,null,null,null,null,null,null,null,null,null,null,null,null,null,null,null,null,null,null,null,null,"0",null,0,"BAJA"]
[null,36,"Los carros transportadores de tracción manual presentan ruedas de diámetro máximo 12,7 cm., con material y recubrimiento exterior conforme a las condiciones del piso donde serán utilizados, siendo fijas las delanteras y giratorias las traseras para largos recorridos o, giratorias las cuatro para recorridos cortos en espacios pequeños <4m2",null,null,null,null,null,null,null,null,null,null,null,null,null,null,null,null,null,null,null,null,null,null,null,null,null,null,null,null,null,null,null,null,null,null,"0",null,0,"BAJA"]
[null,37,"Las ayudas mecánicas para manipulación de cargas en sentido vertical y horizontal han sido seleccionadas de manera que su empleo conserva los requerimientos de producción y calidad",null,null,null,null,null,null,null,null,null,null,null,null,null,null,null,null,null,null,null,null,null,null,null,null,null,null,null,null,null,null,null,null,null,null,"0",null,0,"BAJA"]
[null,38,"Se controla la exposición a peligros mecánicos durante la tarea de MMC ",null,null,null,null,null,null,null,null,null,null,null,null,null,null,null,null,null,null,null,null,null,null,null,null,null,null,null,null,null,null,null,null,null,null,"0",null,0,"BAJA"]
["DETERMINANTE AMBIENTAL",39,"Se conservan amplios, ordenados y libres de obstáculos los espacios donde se ejecuta MMC ",null,null,null,null,null,null,null,null,null,null,null,null,null,null,null,null,null,null,null,null,null,null,null,null,null,null,null,null,null,null,null,null,null,null,"0",null,0,"BAJA"]
[null,40,"Los espacios de las áreas de almacenamiento permiten evitar la remanipulación de cargas y mantener las condiciones de orden y accesibilidad a las mismas",null,null,null,null,null,null,null,null,null,null,null,null,null,null,null,null,null,null,null,null,null,null,null,null,null,null,null,null,null,null,null,null,null,null,"0",null,0,"BAJA"]
[null,41,"Los pisos son estables, antideslizantes, sin cambios de nivel y con demarcación, que permite realizar la MMC bajo condiciones de seguridad",null,null,null,null,null,null,null,null,null,null,null,null,null,null,null,null,null,null,null,null,null,null,null,null,null,null,null,null,null,null,null,null,null,null,"0",null,0,"BAJA"]
[null,42,"Los espacios que necesariamente presentan cambios de nivel se mantienen debidamente demarcados y libres de obstáculos",null,null,null,null,null,null,null,null,null,null,null,null,null,null,null,null,null,null,null,null,null,null,null,null,null,null,null,null,null,null,null,null,null,null,"0",null,0,"BAJA"]
[null,43,"Las condiciones de iluminación general favorecen la visibilidad de información de las cargas, así como de los espacios donde se ejecuta MMC",null,null,null,null,null,null,null,null,null,null,null,null,null,null,null,null,null,null,null,null,null,null,null,null,null,null,null,null,null,null,null,null,null,null,"0",null,0,"BAJA"]
[null,44,"Se percibe confort térmico en las áreas donde se ejecuta la tarea de MMC",null,null,null,null,null,null,null,null,null,null,null,null,null,null,null,null,null,null,null,null,null,null,null,null,null,null,null,null,null,null,null,null,null,null,"0",null,0,"BAJA"]
[null,45,"La MMC se realiza de forma suficientemente aislada con relación a equipos de alta emisión de calor o superficies calientes",null,null,null,null,null,null,null,null,null,null,null,null,null,null,null,null,null,null,null,null,null,null,null,null,null,null,null,null,null,null,null,null,null,null,"0",null,0,"BAJA"]
[null,46,"La exigencia de MMC con exposición a bajas temperaturas se controla mediante el uso de elementos de protección personal eficientes y que permiten la ejecución de adecuados procedimientos biomecánicos.",null,null,null,null,null,null,null,null,null,null,null,null,null,null,null,null,null,null,null,null,null,null,null,null,null,null,null,null,null,null,null,null,null,null,"0",null,0,"BAJA"]
[null,47,"Las áreas donde se ejecuta MMC son suficientemente ventiladas y se encuentran libres o en condiciones controladas de contaminación por material particulado, humos, vapores, entre otros.",null,null,null,null,null,null,null,null,null,null,null,null,null,null,null,null,null,null,null,null,null,null,null,null,null,null,null,null,null,null,null,null,null,null,"0",null,0,"BAJA"]
[null,48,"Los niveles de ruido en las áreas  donde se realiza MMC permiten la comunicación durante el  trabajo en equipo",null,null,null,null,null,null,null,null,null,null,null,null,null,null,null,null,null,null,null,null,null,null,null,null,null,null,null,null,null,null,null,null,null,null,"0",null,0,"BAJA"]
[null,49,"La MMC se realiza sin exposición a vibración",null,null,null,null,null,null,null,null,null,null,null,null,null,null,null,null,null,null,null,null,null,null,null,null,null,null,null,null,null,null,null,null,null,null,"0",null,0,"BAJA"]

{"sheet":"CONSOLIDADO ANÁLISIS","index":4,"n_rows":223,"n_cols":23,"rows_kept":223,"cut":false,"hidden":false,"merged":[[142,14,142,17],[142,18,142,21],[142,22,142,23],[143,0,143,2],[143,4,143,7],[143,10,143,11],[143,14,143,17],[143,18,143,21],[143,22,143,23],[140,0,140,2],[140,4,140,7],[140,10,140,11],[141,0,141,2],[141,4,141,7],[141,10,141,11],[142,0,142,2],[142,4,142,7],[142,10,142,11],[98,0,98,2],[98,4,98,7],[98,10,98,11],[98,14,98,17],[98,18,98,21],[98,22,98,23],[99,0,99,2],[99,4,99,7],[99,10,99,11],[99,14,99,17],[99,18,99,21],[99,22,99,23],[96,0,96,2],[96,4,96,7],[96,10,96,11],[96,14,96,17],[96,18,96,21],[96,22,96,23],[97,0,97,2],[97,4,97,7],[97,10,97,11],[97,14,97,17],[97,18,97,21],[97,22,97,23],[56,0,56,2],[56,4,56,7],[56,10,56,11],[56,14,56,17],[56,18,56,21],[56,22,56,23],[91,0,91,23],[93,8,93,13],[94,3,95,3],[94,4,95,7],[94,10,94,11],[94,12,95,12],[94,13,95,13],[94,14,95,17],[94,18,95,21],[94,22,95,23],[51,10,51,11],[51,12,52,12],[51,13,52,13],[51,14,52,17],[51,18,52,21],[51,22,52,23],[53,10,53,11],[54,10,54,11],[55,10,55,11],[53,14,53,17],[53,18,53,21],[55,14,55,17],[55,18,55,21],[55,22,55,23],[53,22,53,23],[54,14,54,17],[54,18,54,21],[54,22,54,23],[8,3,9,3],[8,14,9,17],[8,18,9,21],[8,22,9,23],[50,8,50,13],[12,22,12,23],[13,22,13,23],[11,18,11,21],[12,18,12,21],[13,18,13,21],[13,14,13,17],[11,14,11,17],[12,14,12,17],[11,22,11,23],[48,0,48,23],[11,0,11,2],[12,0,12,2],[13,0,13,2],[53,0,53,2],[54,0,54,2],[0,0,0,23],[1,0,1,23],[5,0,5,23],[3,0,3,1],[3,15,3,17],[10,22,10,23],[3,8,3,9],[3,10,3,13],[3,2,3,6],[10,4,10,7],[10,0,10,2],[7,8,7,13],[8,12,9,12],[8,13,9,13],[8,10,8,11],[10,10,10,11],[10,18,10,21],[10,14,10,17],[11,10,11,11],[12,10,12,11],[13,10,13,11],[8,4,9,7],[135,0,135,23],[137,8,137,13],[138,3,139,3],[138,4,139,7],[138,10,138,11],[138,12,139,12],[138,13,139,13],[138,14,139,17],[138,18,139,21],[138,22,139,23],[3,22,3,23],[186,3,186,8],[223,0,250,23],[222,0,222,23],[181,9,181,12],[183,3,183,8],[184,3,184,8],[185,3,185,8],[11,4,11,7],[12,4,12,7],[13,4,13,7],[179,0,179,23],[141,14,141,17],[141,18,141,21],[141,22,141,23],[140,14,140,17],[140,18,140,21],[140,22,140,23],[55,0,55,2],[53,4,53,7],[54,4,54,7],[55,4,55,7],[51,3,52,3],[51,4,52,7]]}
[]
["Herramienta de Evaluación Profunda\nConsolidado Análisis"]
[]
["Empresa",null,{"$f":"'INFORMACION GENERAL'!E6","v":0},null,null,null,null,null,"Tarea crítica evaluada",null,{"$f":"'INFORMACION GENERAL'!E13","v":0},null,null,null,null,"Proceso crítico evaluado",null,null,null,null,null,null,{"$f":"'INFORMACION GENERAL'!V13","v":0}]
[]
["CONSOLIDADO OPINIÓN TRABAJADOR(ES) EXPERTO(S)"]
[]
[null,null,null,null,null,null,null,null,"OPINIÓN SOBRE PRESENCIA Y/O FRECUENCIA DE OCURRENCIA DE LAS VARIABLES EVALUADAS"]
[null,null,null,"No. DE VARIABLES EVALUADAS","% IMPORTANCIA ASIGNADO POR DETERMINANTE",null,null,null,"Sí, siempre",null,"Parcialmente",null,"No, nunca","No aplica","SUMA DE VARIABLES QUE OCURREN SIEMPRE O MÁS DEL 50% O, NO APLICAN",null,null,null,"% GESTIÓN DE INTERVENCIÓN SEGÚN  % DE IMPORTANCIA ASIGNADO POR DETERMINANTE",null,null,null,"%GESTIÓN DE INTERVENCIÓN GENERAL POR DETERMINANTE"]
[null,null,null,null,null,null,null,null," =o>7 horas\n>90% del tiempo"," >=4 y < 7 horas\n50% a 89% del tiempo"," >=2 y < 4 horas\n25% a 49% del tiempo"," < 2 horas\n1% a 24% del tiempo"]
["DETERMINANTE ORGANIZACIONAL",null,null,16,30,null,null,null,{"$f":"COUNTIF('ANÁLISIS PARTICIPATIVO'!D9:D24,\"X\")","v":0},0,{"$f":"COUNTIF('ANÁLISIS PARTICIPATIVO'!E9:E24,\"X\")","v":0},null,{"$f":"COUNTIF('ANÁLISIS PARTICIPATIVO'!J9:J24,\"X\")","v":0},{"$f":"COUNTIF('ANÁLISIS PARTICIPATIVO'!L9:L24,\"X\")","v":0},{"$f":"SUM(I11:J11)","v":0},null,null,null,{"$f":"E11/D11*O11/100","v":0},null,null,null,{"$f":"O11*100%/D11","v":0}]
["DETERMINANTE HUMANA",null,null,2,10,null,null,null,{"$f":"COUNTIF('ANÁLISIS PARTICIPATIVO'!D25:D26,\"X\")","v":0},0,{"$f":"COUNTIF('ANÁLISIS PARTICIPATIVO'!E25:E26,\"X\")","v":0},null,{"$f":"COUNTIF('ANÁLISIS PARTICIPATIVO'!J25:J26,\"X\")","v":0},{"$f":"COUNTIF('ANÁLISIS PARTICIPATIVO'!L25:L26,\"X\")","v":0},{"$f":"SUM(I12:J12)","v":0},null,null,null,{"$f":"E12/D12*O12/100","v":0},null,null,null,{"$f":"O12*100%/D12","v":0}]
["DETERMINANTE TECNOLÓGICA",null,null,{"$f":"COUNT('ANÁLISIS PARTICIPATIVO'!B28:B47)","v":20},30,null,null,null,{"$f":"COUNTIF('ANÁLISIS PARTICIPATIVO'!D28:D47,\"X\")","v":0},{"$f":"COUNTIF('ANÁLISIS PARTICIPATIVO'!E28:E47,\"X\")","v":0},{"$f":"COUNTIF('ANÁLISIS PARTICIPATIVO'!F28:F47,\"X\")+COUNTIF('ANÁLISIS PARTICIPATIVO'!G28:G47,\"X\")","v":0},null,{"$f":"COUNTIF('ANÁLISIS PARTICIPATIVO'!J28:J47,\"X\")","v":0},{"$f":"COUNTIF('ANÁLISIS PARTICIPATIVO'!L28:L47,\"X\")","v":0},0,null,null,null,{"$f":"E13/D13*O13/100","v":0},null,null,null,{"$f":"O13*100%/D13","v":0}]
["DETERMINANTE AMBIENTAL",null,null,{"$f":"COUNT('ANÁLISIS PARTICIPATIVO'!B48:B58)","v":11},30,null,null,null,{"$f":"COUNTIF('ANÁLISIS PARTICIPATIVO'!D48:D58,\"X\")","v":0},{"$f":"COUNTIF('ANÁLISIS PARTICIPATIVO'!E48:E58,\"X\")","v":0},{"$f":"COUNTIF('ANÁLISIS PARTICIPATIVO'!F48:F58,\"X\")+COUNTIF('ANÁLISIS PARTICIPATIVO'!G48:G58,\"X\")","v":0},null,{"$f":"COUNTIF('ANÁLISIS PARTICIPATIVO'!J48:J58,\"X\")","v":0},{"$f":"COUNTIF('ANÁLISIS PARTICIPATIVO'!L48:L58,\"X\")","v":0},0,null,null,null,{"$f":"E14/D14*O14/100","v":0},null,null,null,{"$f":"O14*100%/D14","v":0}]
[]
[]
[]
[]
[]
[]
[]
[]
[]
[]
[]
[]
[]
[]
[]
[]
[]
[]
[]
[]
[]
[]
[]
[]
[]
[]
[]
[]
[]
[]
[]
[]
[]
[]
["CONSOLIDADO OPINIÓN JEFE O SUPERVISOR"]
[]
[null,null,null,null,null,null,null,null,"OPINIÓN SOBRE PRESENCIA Y/O FRECUENCIA DE OCURRENCIA DE LAS VARIABLES EVALUADAS"]
[null,null,null,"No. DE VARIABLES EVALUADAS","% IMPORTANCIA ASIGNADO POR DETERMINANTE",null,null,null,"SÍ, siempre",null,"Parcialmente",null,"No, nunca","No aplica","SUMA DE VARIABLES QUE OCURREN SIEMPRE O MÁS DEL 50% O, NO APLICAN",null,null,null,"% GESTIÓN DE INTERVENCIÓN SEGÚN  % DE IMPORTANCIA ASIGNADO POR DETERMINANTE",null,null,null,"%GESTIÓN DE INTERVENCIÓN GENERAL POR DETERMINANTE"]
[null,null,null,null,null,null,null,null," =o>7 horas\n>90% del tiempo"," >=4 y < 7 horas\n50% a 89% del tiempo"," >=2 y < 4 horas\n25% a 49% del tiempo"," < 2 horas\n1% a 24% del tiempo"]
["DETERMINANTE ORGANIZACIONAL",null,null,16,{"$f":"E11","v":30},null,null,null,{"$f":"COUNTIF('ANÁLISIS PARTICIPATIVO'!M9:M24,\"X\")","v":0},0,{"$f":"COUNTIF('ANÁLISIS PARTICIPATIVO'!N9:N24,\"X\")","v":0},null,{"$f":"COUNTIF('ANÁLISIS PARTICIPATIVO'!S9:S24,\"X\")","v":0},{"$f":"COUNTIF('ANÁLISIS PARTICIPATIVO'!U9:U24,\"X\")","v":0},{"$f":"SUM(I54:J54)","v":0},null,null,null,{"$f":"E54/D54*O54/100","v":0},null,null,null,{"$f":"O54*100%/D54","v":0}]
["DETERMINANTE HUMANA",null,null,2,{"$f":"E12","v":10},null,null,null,{"$f":"COUNTIF('ANÁLISIS PARTICIPATIVO'!M25:M26,\"X\")","v":0},0,{"$f":"COUNTIF('ANÁLISIS PARTICIPATIVO'!N25:N26,\"X\")","v":0},null,{"$f":"COUNTIF('ANÁLISIS PARTICIPATIVO'!S25:S26,\"X\")","v":0},{"$f":"COUNTIF('ANÁLISIS PARTICIPATIVO'!U25:U26,\"X\")","v":0},{"$f":"SUM(I55:J55)","v":0},null,null,null,{"$f":"E55/D55*O55/100","v":0},null,null,null,{"$f":"O55*100%/D55","v":0}]
["DETERMINANTE TECNOLÓGICA",null,null,20,{"$f":"E13","v":30},null,null,null,{"$f":"COUNTIF('ANÁLISIS PARTICIPATIVO'!M28:M47,\"X\")","v":0},{"$f":"COUNTIF('ANÁLISIS PARTICIPATIVO'!N28:N47,\"X\")","v":0},{"$f":"COUNTIF('ANÁLISIS PARTICIPATIVO'!O28:O47,\"X\")+COUNTIF('ANÁLISIS PARTICIPATIVO'!P28:P47,\"X\")","v":0},null,{"$f":"COUNTIF('ANÁLISIS PARTICIPATIVO'!S28:S47,\"X\")","v":0},{"$f":"COUNTIF('ANÁLISIS PARTICIPATIVO'!U28:U47,\"X\")","v":0},0,null,null,null,{"$f":"E56/D56*O56/100","v":0},null,null,null,{"$f":"O56*100%/D56","v":0}]
["DETERMINANTE AMBIENTAL",null,null,11,{"$f":"E14","v":30},null,null,null,{"$f":"COUNTIF('ANÁLISIS PARTICIPATIVO'!M48:M58,\"X\")","v":0},{"$f":"COUNTIF('ANÁLISIS PARTICIPATIVO'!N48:N58,\"X\")","v":0},{"$f":"COUNTIF('ANÁLISIS PARTICIPATIVO'!O48:O58,\"X\")+COUNTIF('ANÁLISIS PARTICIPATIVO'!P48:P58,\"X\")","v":0},null,{"$f":"COUNTIF('ANÁLISIS PARTICIPATIVO'!S48:S58,\"X\")","v":0},{"$f":"COUNTIF('ANÁLISIS PARTICIPATIVO'!U48:U58,\"X\")","v":0},{"$f":"SUM(I57:J57)","v":0},null,null,null,{"$f":"E57/D57*O57/100","v":0},null,null,null,{"$f":"O57*100%/D57","v":0}]
[]
[]
[]
[]
[]
[]
[]
[]
[]
[]
[]
[]
[]
[]
[]
[]
[]
[]
[]
[]
[]
[]
[]
[]
[]
[]
[]
[]
[]
[]
[]
[]
[]
[]
["CONSOLIDADO OPINIÓN RESPONSABLE DEL DISEÑO Y MEJORAMIENTO DEL PROCESO"]
[]
[null,null,null,null,null,null,null,null,"OPINIÓN SOBRE PRESENCIA Y/O FRECUENCIA DE OCURRENCIA DE LAS VARIABLES EVALUADAS"]
[null,null,null,"No. DE VARIABLES EVALUADAS","% IMPORTANCIA ASIGNADO POR DETERMINANTE",null,null,null,"SÍ, siempre",null,"Parcialmente",null,"No, nunca","No aplica","SUMA DE VARIABLES QUE OCURREN SIEMPRE O MÁS DEL 50% O, NO APLICAN",null,null,null,"% GESTIÓN DE INTERVENCIÓN SEGÚN  % DE IMPORTANCIA ASIGNADO POR DETERMINANTE",null,null,null,"%GESTIÓN DE INTERVENCIÓN GENERAL POR DETERMINANTE"]
[null,null,null,null,null,null,null,null," =o>7 horas\n>90% del tiempo"," >=4 y < 7 horas\n50% a 89% del tiempo"," >=2 y < 4 horas\n25% a 49% del tiempo"," < 2 horas\n1% a 24% del tiempo"]
["DETERMINANTE ORGANIZACIONAL",null,null,16,{"$f":"E11","v":30},null,null,null,{"$f":"COUNTIF('ANÁLISIS PARTICIPATIVO'!V9:V24,\"X\")","v":0},0,{"$f":"COUNTIF('ANÁLISIS PARTICIPATIVO'!W9:W24,\"X\")","v":0},null,{"$f":"COUNTIF('ANÁLISIS PARTICIPATIVO'!AB9:AB24,\"X\")","v":0},{"$f":"COUNTIF('ANÁLISIS PARTICIPATIVO'!AD9:AD24,\"X\")","v":0},{"$f":"SUM(I97:J97)","v":0},null,null,null,{"$f":"E97/D97*O97/100","v":0},null,null,null,{"$f":"O97*100%/D97","v":0}]
["DETERMINANTE HUMANA",null,null,2,{"$f":"E12","v":10},null,null,null,{"$f":"COUNTIF('ANÁLISIS PARTICIPATIVO'!V25:V26,\"X\")","v":0},0,{"$f":"COUNTIF('ANÁLISIS PARTICIPATIVO'!W25:W26,\"X\")","v":0},null,{"$f":"COUNTIF('ANÁLISIS PARTICIPATIVO'!AB25:AB26,\"X\")","v":0},{"$f":"COUNTIF('ANÁLISIS PARTICIPATIVO'!AD25:AD26,\"X\")","v":0},{"$f":"SUM(I98:J98)","v":0},null,null,null,{"$f":"E98/D98*O98/100","v":0},null,null,null,{"$f":"O98*100%/D98","v":0}]
["DETERMINANTE TECNOLÓGICA",null,null,20,30,null,null,null,{"$f":"COUNTIF('ANÁLISIS PARTICIPATIVO'!V28:V47,\"X\")","v":0},{"$f":"COUNTIF('ANÁLISIS PARTICIPATIVO'!W28:W47,\"X\")","v":0},{"$f":"COUNTIF('ANÁLISIS PARTICIPATIVO'!X28:X47,\"X\")+COUNTIF('ANÁLISIS PARTICIPATIVO'!Y28:Y47,\"X\")","v":0},null,{"$f":"COUNTIF('ANÁLISIS PARTICIPATIVO'!AB28:AB47,\"X\")","v":0},{"$f":"COUNTIF('ANÁLISIS PARTICIPATIVO'!AD28:AD47,\"X\")","v":0},0,null,null,null,{"$f":"E99/D99*O99/100","v":0},null,null,null,{"$f":"O99*100%/D99","v":0}]
["DETERMINANTE AMBIENTAL",null,null,11,30,null,null,null,{"$f":"COUNTIF('ANÁLISIS PARTICIPATIVO'!V48:V58,\"X\")","v":0},{"$f":"COUNTIF('ANÁLISIS PARTICIPATIVO'!W48:W58,\"X\")","v":0},{"$f":"COUNTIF('ANÁLISIS PARTICIPATIVO'!X48:X58,\"X\")+COUNTIF('ANÁLISIS PARTICIPATIVO'!Y48:Y58,\"X\")","v":0},null,{"$f":"COUNTIF('ANÁLISIS PARTICIPATIVO'!AB48:AB58,\"X\")","v":0},{"$f":"COUNTIF('ANÁLISIS PARTICIPATIVO'!AD48:AD58,\"X\")","v":0},{"$f":"SUM(I100:J100)","v":0},null,null,null,{"$f":"E100/D100*O100/100","v":0},null,null,null,{"$f":"O100*100%/D100","v":0}]
[]
[]
[]
[]
[]
[]
[]
[]
[]
[]
[]
[]
[]
[]
[]
[]
[]
[]
[]
[]
[]
[]
[]
[]
[]
[]
[]
[]
[]
[]
[]
[]
[]
[]
[]
["CONSOLIDADO OPINIÓN ESPECIALISTA EN ERGONOMÍA"]
[]
[null,null,null,null,null,null,null,null,"OPINIÓN SOBRE PRESENCIA Y/O FRECUENCIA DE OCURRENCIA DE LAS VARIABLES EVALUADAS"]
[null,null,null,"No. DE VARIABLES EVALUADAS","% IMPORTANCIA ASIGNADO POR DETERMINANTE",null,null,null,"SÍ, siempre",null,"Parcialmente",null,"No, nunca","No aplica","SUMA DE VARIABLES QUE OCURREN SIEMPRE O MÁS DEL 50% O, NO APLICAN",null,null,null,"% GESTIÓN DE INTERVENCIÓN SEGÚN  % DE IMPORTANCIA ASIGNADO POR DETERMINANTE",null,null,null,"%GESTIÓN DE INTERVENCIÓN GENERAL POR DETERMINANTE"]
[null,null,null,null,null,null,null,null," =o>7 horas\n>90% del tiempo"," >=4 y < 7 horas\n50% a 89% del tiempo"," >=2 y < 4 horas\n25% a 49% del tiempo"," < 2 horas\n1% a 24% del tiempo"]
["DETERMINANTE ORGANIZACIONAL",null,null,16,{"$f":"E11","v":30},null,null,null,{"$f":"COUNTIF('ANÁLISIS PARTICIPATIVO'!AE9:AE24,\"X\")","v":0},0,{"$f":"COUNTIF('ANÁLISIS PARTICIPATIVO'!AF9:AF24,\"X\")","v":0},null,{"$f":"COUNTIF('ANÁLISIS PARTICIPATIVO'!AK9:AK24,\"X\")","v":0},{"$f":"COUNTIF('ANÁLISIS PARTICIPATIVO'!AM9:AM24,\"X\")","v":0},{"$f":"SUM(I141:J141)","v":0},null,null,null,{"$f":"E141/D141*O141/100","v":0},null,null,null,{"$f":"O141*100%/D141","v":0}]
["DETERMINANTE HUMANA",null,null,2,{"$f":"E12","v":10},null,null,null,{"$f":"COUNTIF('ANÁLISIS PARTICIPATIVO'!AE25:AE26,\"X\")","v":0},0,{"$f":"COUNTIF('ANÁLISIS PARTICIPATIVO'!AF25:AF26,\"X\")","v":0},null,{"$f":"COUNTIF('ANÁLISIS PARTICIPATIVO'!AK25:AK26,\"X\")","v":0},{"$f":"COUNTIF('ANÁLISIS PARTICIPATIVO'!AM25:AM26,\"X\")","v":0},{"$f":"SUM(I142:J142)","v":0},null,null,null,{"$f":"E142/D142*O142/100","v":0},null,null,null,{"$f":"O142*100%/D142","v":0}]
["DETERMINANTE TECNOLÓGICA",null,null,20,30,null,null,null,{"$f":"COUNTIF('ANÁLISIS PARTICIPATIVO'!AE28:AE47,\"X\")","v":0},{"$f":"COUNTIF('ANÁLISIS PARTICIPATIVO'!AF28:AF47,\"X\")","v":0},{"$f":"COUNTIF('ANÁLISIS PARTICIPATIVO'!AG28:AG47,\"X\")+COUNTIF('ANÁLISIS PARTICIPATIVO'!AH28:AH47,\"X\")","v":0},null,{"$f":"COUNTIF('ANÁLISIS PARTICIPATIVO'!AK28:AK47,\"X\")","v":0},{"$f":"COUNTIF('ANÁLISIS PARTICIPATIVO'!AM28:AM47,\"X\")","v":0},0,null,null,null,{"$f":"E143/D143*O143/100","v":0},null,null,null,{"$f":"O143*100%/D143","v":0}]
["DETERMINANTE AMBIENTAL",null,null,11,30,null,null,null,{"$f":"COUNTIF('ANÁLISIS PARTICIPATIVO'!AE48:AE58,\"X\")","v":0},{"$f":"COUNTIF('ANÁLISIS PARTICIPATIVO'!AF48:AF58,\"X\")","v":0},{"$f":"COUNTIF('ANÁLISIS PARTICIPATIVO'!AG48:AG58,\"X\")+COUNTIF('ANÁLISIS PARTICIPATIVO'!AH48:AH58,\"X\")","v":0},null,{"$f":"COUNTIF('ANÁLISIS PARTICIPATIVO'!AK48:AK58,\"X\")","v":0},{"$f":"COUNTIF('ANÁLISIS PARTICIPATIVO'!AM48:AM58,\"X\")","v":0},{"$f":"SUM(I144:J144)","v":0},null,null,null,{"$f":"E144/D144*O144/100","v":0},null,null,null,{"$f":"O144*100%/D144","v":0}]
[]
[]
[]
[]
[]
[]
[]
[]
[]
[]
[]
[]
[]
[]
[]
[]
[]
[]
[]
[]
[]
[]
[]
[]
[]
[]
[]
[]
[]
[]
[]
[]
[]
[]
[]
["CONSOLIDADO OPINIÓN PARTICIPANTES EN LA EVALUACIÓN"]
[]
[null,null,null,null,null,null,null,null,null,"%GESTIÓN DE INTERVENCIÓN GENERAL POR DETERMINANTE"]
[null,null,null,null,null,null,null,null,null,"TRABAJADOR EXPERTO","TRABAJADOR SUPERVISOR","TRABAJADOR RESPONSABLE DE DISEÑO Y MEJORAMIENTO DE PROCESOS","ESPECIALISTA EN ERGONOMÍA"]
[null,null,null,"DETERMINANTE ORGANIZACIONAL",null,null,null,null,null,{"$f":"W11","v":0},{"$f":"W54","v":0},{"$f":"W97","v":0},{"$f":"W141","v":0}]
[null,null,null,"DETERMINANTE HUMANA",null,null,null,null,null,{"$f":"W12","v":0},{"$f":"W55","v":0},{"$f":"W98","v":0},{"$f":"W142","v":0}]
[null,null,null,"DETERMINANTE TECNOLÓGICA",null,null,null,null,null,{"$f":"W13","v":0},0,0,0]
[null,null,null,"DETERMINANTE AMBIENTAL",null,null,null,null,null,{"$f":"W14","v":0},0,0,0]
[]
[]
[]
[]
[]
[]
[]
[]
[]
[]
[]
[]
[]
[]
[]
[]
[]
[]
[]
[]
[]
[]
[]
[]
[]
[]
[]
[]
[]
[]
[]
[]
[]
[]
[]
["CONCLUSIONES FINALES"]

{"sheet":"FORMATO DE CAMPO","index":5,"n_rows":58,"n_cols":44,"rows_kept":58,"cut":false,"hidden":false,"merged":[[7,4,7,6],[7,13,7,15],[7,22,7,24],[7,31,7,33],[0,0,0,39],[1,0,1,43],[3,0,3,2],[5,3,5,29],[5,30,6,38],[6,3,6,11],[6,12,6,20],[6,21,6,29],[3,3,3,12],[3,41,3,43],[8,0,23,0],[8,4,8,6],[8,13,8,15],[8,22,8,24],[8,31,8,33],[9,4,9,6],[9,13,9,15],[9,22,9,24],[9,31,9,33],[10,4,10,6],[10,13,10,15],[10,22,10,24],[10,31,10,33],[11,4,11,6],[11,13,11,15],[11,22,11,24],[11,31,11,33],[12,4,12,6],[12,13,12,15],[12,22,12,24],[12,31,12,33],[13,4,13,6],[13,13,13,15],[13,22,13,24],[13,31,13,33],[14,4,14,6],[14,13,14,15],[14,22,14,24],[14,31,14,33],[15,22,15,24],[15,31,15,33],[16,4,16,6],[16,13,16,15],[16,22,16,24],[16,31,16,33],[23,4,23,6],[23,13,23,15],[23,22,23,24],[23,31,23,33],[20,4,20,6],[20,13,20,15],[20,22,20,24],[20,31,20,33],[21,4,21,6],[21,13,21,15],[21,22,21,24],[21,31,21,33],[22,22,22,24],[22,31,22,33],[22,4,22,6],[22,13,22,15],[19,4,19,6],[19,13,19,15],[19,22,19,24],[19,31,19,33],[3,14,3,22],[3,23,3,36],[17,4,17,6],[17,13,17,15],[17,22,17,24],[17,31,17,33],[18,4,18,6],[18,13,18,15],[18,22,18,24],[18,31,18,33],[15,4,15,6],[15,13,15,15],[27,0,46,0],[47,0,57,0],[24,0,25,0],[24,4,24,6],[24,13,24,15],[24,22,24,24],[24,31,24,33],[25,4,25,6],[25,13,25,15],[25,22,25,24],[25,31,25,33]]}
[]
["Herramienta de Evaluación Profunda\nAnálisis Participativo"]
[]
["Empresa",null,null,null,null,null,null,null,null,null,null,null,null,null,"Nombre del proceso crítico",null,null,null,null,null,null,null,null,null,null,null,null,null,null,null,null,null,null,null,null,null,null,null,null,null,"Nombre de la tarea crítica por manipulación manual de cargas"]
[]
[null,null,null,"ACTORES DE LA TAREA",null,null,null,null,null,null,null,null,null,null,null,null,null,null,null,null,null,null,null,null,null,null,null,null,null,null,"ESPECIALISTA EN ERGONOMÍA"]
[null,null,null,"TRABAJADOR EXPERTO",null,null,null,null,null,null,null,null,"SUPERVISOR O JEFE",null,null,null,null,null,null,null,null,"RESPONSABLE DISEÑO Y MEJORAMIENTO DEL PROCESO"]
[null,null,"VARIABLES A EVALUAR","SÍ, siempre","Parcialmente",null,null,null,null,"No, nunca",null,"No aplica","SÍ, siempre","Parcialmente",null,null,null,null,"No, nunca",null,"No aplica","SÍ, siempre","Parcialmente",null,null,null,null,"No, nunca",null,"No aplica","SÍ, siempre","Parcialmente",null,null,null,null,"No, nunca",null,"No aplica","TOTAL","OBSERVACIONES Y CONCLUSIONES",null,"ESTRATEGIAS DE INTERVENCIÓN SUGERIDAS POR ACTORES DE LA TAREA","ESTRATEGIAS DE INTERVENCIÓN SUGERIDAS POR ESPECIALISTA EN ERGONOMÍA"]
["DETERMINANTE ORGANIZACIONAL",1,"Hay una política de Seguridad y Salud en el trabajo, que se ve reflejada en la asignación de recursos para las intervenciones dirigidas a mitigar la problemática por MMC",null,null,null,null,null,null,null,null,null,null,null,null,null,null,null,null,null,null,null,null,null,null,null,null,null,null,null,null,null,null,null,null,null,null,null,null,{"$f":"H9+I9+K9+Q9+R9+T9+Z9+AA9+AC9+AI9+AJ9+AL9","v":0}]
[null,2,"Se mantiene actualizada (últimos 6 meses) la información para vigilancia de las condiciones de salud músculo esquelética de los trabajadores expuestos de las condiciones de trabajo para la ejecución de las tareas críticas por MMC",null,null,null,null,null,null,null,null,null,null,null,null,null,null,null,null,null,null,null,null,null,null,null,null,null,null,null,null,null,null,null,null,null,null,null,null,{"$f":"H10+I10+K10+Q10+R10+T10+Z10+AA10+AC10+AI10+AJ10+AL10","v":0}]
[null,3,"Los supervisores y/o jefes de área conocen los procedimientos de seguridad para MMC y, velan por su cumplimiento",null,null,null,null,null,null,null,null,null,null,null,null,null,null,null,null,null,null,null,null,null,null,null,null,null,null,null,null,null,null,null,null,null,null,null,null,0]
[null,4,"La  asignación de trabajadores  en el área es suficiente y/o se ajusta la asignación de tareas, de manera que se atienden oportunamente los picos de producción",null,null,null,null,null,null,null,null,null,null,null,null,null,null,null,null,null,null,null,null,null,null,null,null,null,null,null,null,null,null,null,null,null,null,null,null,0]
[null,5,"La tarea es ejecutada por personal de contratación directa",null,null,null,null,null,null,null,null,null,null,null,null,null,null,null,null,null,null,null,null,null,null,null,null,null,null,null,null,null,null,null,null,null,null,null,null,0]
[null,6,"La organización del proceso permite la alternancia de la tarea crítica por MMC y otros tipos de tareas, permitiendo la recuperación física de los expuestos",null,null,null,null,null,null,null,null,null,null,null,null,null,null,null,null,null,null,null,null,null,null,null,null,null,null,null,null,null,null,null,null,null,null,null,null,0]
[null,7,"Existe planeación en aspectos relacionados con la distribución de material en planta, condiciones de almacenamiento y ayudas tecnológicas que disminuyan la exposición a MMC",null,null,null,null,null,null,null,null,null,null,null,null,null,null,null,null,null,null,null,null,null,null,null,null,null,null,null,null,null,null,null,null,null,null,null,null,0]
[null,8,"Existe un programa de mantenimiento predictivo y/o preventivo que garantice el  adecuado  funcionamiento de las ayudas tecnológicas ",null,null,null,null,null,null,null,null,null,null,null,null,null,null,null,null,null,null,null,null,null,null,null,null,null,null,null,null,null,null,null,null,null,null,null,null,0]
[null,9,"Se documentan requerimientos ergonómicos en los procedimientos de selección y adquisición contenidos en el programa de elementos de protección personal y dotación",null,null,null,null,null,null,null,null,null,null,null,null,null,null,null,null,null,null,null,null,null,null,null,null,null,null,null,null,null,null,null,null,null,null,null,null,0]
[null,10,"Los trabajadores expertos y expuestos participan en la solución de problemas relacionados con la MMC",null,null,null,null,null,null,null,null,null,null,null,null,null,null,null,null,null,null,null,null,null,null,null,null,null,null,null,null,null,null,null,null,null,null,null,null,0]
[null,11,"Se realizan exámenes médicos ocupacionales con énfasis en evaluación clínica de los desórdenes músculo esqueléticos de columna y miembros superiores",null,null,null,null,null,null,null,null,null,null,null,null,null,null,null,null,null,null,null,null,null,null,null,null,null,null,null,null,null,null,null,null,null,null,null,null,0]
[null,12,"Se realizan evaluaciones de las cualidades físicas (fuerza, flexibilidad, resistencia cardiovascular) ",null,null,null,null,null,null,null,null,null,null,null,null,null,null,null,null,null,null,null,null,null,null,null,null,null,null,null,null,null,null,null,null,null,null,null,null,0]
[null,13,"Se  selecciona la población que ejecutará la tarea crítica, conforme a un perfil ocupacional específico",null,null,null,null,null,null,null,null,null,null,null,null,null,null,null,null,null,null,null,null,null,null,null,null,null,null,null,null,null,null,null,null,null,null,null,null,0]
[null,14,"Se implementan  estrategias de formación en la prevención de DME y AT por MMC ",null,null,null,null,null,null,null,null,null,null,null,null,null,null,null,null,null,null,null,null,null,null,null,null,null,null,null,null,null,null,null,null,null,null,null,null,0]
[null,15,"El ritmo de trabajo de los procesos que involucran MMC puede ser controlado por el trabajador",null,null,null,null,null,null,null,null,null,null,null,null,null,null,null,null,null,null,null,null,null,null,null,null,null,null,null,null,null,null,null,null,null,null,null,null,0]
[null,16,"Se consideran las siguientes directrices al asignar actividades de MMC a mujeres como:\n\n*Mujeres en estado de embarazo: Actividades con ausencia o muy baja exigencia de MMC (<5Kg.)\n*Mujeres hasta de 18 años (<=8Kg.)\n*Mujeres de 18 años y más (<=12 Kg.)",null,null,null,null,null,null,null,null,null,null,null,null,null,null,null,null,null,null,null,null,null,null,null,null,null,null,null,null,null,null,null,null,null,null,null,null,0]
["DETERMINANTE HUMANA",17,"Los trabajadores demuestran estar entrenados y poseer conocimiento suficiente para desempeñar de forma segura la tarea crítica",null,null,null,null,null,null,null,null,null,null,null,null,null,null,null,null,null,null,null,null,null,null,null,null,null,null,null,null,null,null,null,null,null,null,null,null,0]
[null,18,"El trabajador está entrenado y sabe como planificar con suficiente anticipación las tareas de MMC que demandan trabajo en equipo, para ejecutarlas en condiciones de seguridad",null,null,null,null,null,null,null,null,null,null,null,null,null,null,null,null,null,null,null,null,null,null,null,null,null,null,null,null,null,null,null,null,null,null,null,null,0]
[null,null,null," =o>7 horas\n>90% del tiempo"," >=4 y < 7 horas\n50% a 89% del tiempo"," >=2 y < 4 horas\n25% a 49% del tiempo"," < 2 horas\n1% a 24% del tiempo",null,null,"No, nunca",null,"No aplica"," =o>7 horas\n>90% del tiempo"," >=4 y < 7 horas\n50% a 89% del tiempo"," >=2 y < 4 horas\n25% a 49% del tiempo"," < 2 horas\n1% a 24% del tiempo",null,null,"No, nunca",null,"No aplica"," =o>7 horas\n>90% del tiempo"," >=4 y < 7 horas\n50% a 89% del tiempo"," >=2 y < 4 horas\n25% a 49% del tiempo"," < 2 horas\n1% a 24% del tiempo",null,null,"No, nunca",null,"No aplica"," =o>7 horas\n>90% del tiempo"," >=4 y < 7 horas\n50% a 89% del tiempo"," >=2 y < 4 horas\n25% a 49% del tiempo"," < 2 horas\n1% a 24% del tiempo",null,null,"No, nunca",null,"No aplica","TOTAL"]
["DETERMINANTE TECNOLÓGICA",19,"El peso de las cargas a manipular manualmente son inferiores a 25 Kg. (hombres) y 12,5 Kg. (mujeres)",null,null,null,null,null,null,null,null,null,null,null,null,null,null,null,null,null,null,null,null,null,null,null,null,null,null,null,null,null,null,null,null,null,null,null,null,{"$f":"H28+I28+K28+Q28+R28+T28+Z28+AA28+AC28+AI28+AJ28+AL28","v":0}]
[null,20,"Cuando la carga excede 25 Kg. (hombres) y 12,5 Kg. (mujeres), se emplean ayudas mecánicas que suplen eficientemente los momentos críticos de MMC",null,null,null,null,null,null,null,null,null,null,null,null,null,null,null,null,null,null,null,null,null,null,null,null,null,null,null,null,null,null,null,null,null,null,null,null,0]
[null,21,"Las cargas a manipular presentan tamaños acordes con los espacios de circulación y permiten la visibilidad de los pasillos a recorrer transportando las mismas",null,null,null,null,null,null,null,null,null,null,null,null,null,null,null,null,null,null,null,null,null,null,null,null,null,null,null,null,null,null,null,null,null,null,null,null,0]
[null,22,"Las distancias de transporte de la carga son acordes con relación al peso y frecuencia de manipulación conforme  se recomienda en la NTC 5693-1",null,null,null,null,null,null,null,null,null,null,null,null,null,null,null,null,null,null,null,null,null,null,null,null,null,null,null,null,null,null,null,null,null,null,null,null,0]
[null,23,"Los puntos de origen y de destino de la carga se encuentran dentro del rango vertical comprendido entre 80 cm. y 130 cm. Así como a una distancia horizontal inferior a 45 cm. con respecto al cuerpo",null,null,null,null,null,null,null,null,null,null,null,null,null,null,null,null,null,null,null,null,null,null,null,null,null,null,null,null,null,null,null,null,null,null,null,null,0]
[null,24,"La disposición entre puntos de origen y de destino de la carga evita giros de tronco >45° y  permite el movimiento del cuerpo en bloque",null,null,null,null,null,null,null,null,null,null,null,null,null,null,null,null,null,null,null,null,null,null,null,null,null,null,null,null,null,null,null,null,null,null,null,null,0]
[null,25,"El volumen o dimensión de la carga en sentido horizontal permite mantener adecuada alineación postural de la columna y miembros superiores",null,null,null,null,null,null,null,null,null,null,null,null,null,null,null,null,null,null,null,null,null,null,null,null,null,null,null,null,null,null,null,null,null,null,null,null,0]
[null,26,"Las asas o partes para agarrar las unidades de carga a levantar y transportar presentan condiciones de diseño favorable,  conforme a los requerimientos estimados por NIOSH (altura a 100 cm., largo >12,7 cm., agarre a mano llena, exigencia de leves desviaciones de muñecas)",null,null,null,null,null,null,null,null,null,null,null,null,null,null,null,null,null,null,null,null,null,null,null,null,null,null,null,null,null,null,null,null,null,null,null,null,0]
[null,27,"Las cargas a manipular son estables (centro de gravedad no se desplaza)",null,null,null,null,null,null,null,null,null,null,null,null,null,null,null,null,null,null,null,null,null,null,null,null,null,null,null,null,null,null,null,null,null,null,null,null,0]
[null,28,"Las herramientas de manejo unimanual utilizadas para el desempeño de la actividad presentan pesos inferiores a 1 Kg.",null,null,null,null,null,null,null,null,null,null,null,null,null,null,null,null,null,null,null,null,null,null,null,null,null,null,null,null,null,null,null,null,null,null,null,null,0]
[null,29,"Si existen herramientas pesadas >2 Kg. su manipulación es bimanual y se encuentran ubicadas en soportes accesibles o suspendidas en sistemas balanceadores",null,null,null,null,null,null,null,null,null,null,null,null,null,null,null,null,null,null,null,null,null,null,null,null,null,null,null,null,null,null,null,null,null,null,null,null,0]
[null,30,"Las ayudas mecánicas presentan sistemas de fácil ajustabilidad que benefician la accesibilidad horizontal y vertical con relación a los puntos de agarre de las cargas",null,null,null,null,null,null,null,null,null,null,null,null,null,null,null,null,null,null,null,null,null,null,null,null,null,null,null,null,null,null,null,null,null,null,null,null,0]
[null,31,"Los carros transportadores de tracción manual presentan tamaños y capacidad para trasladar establemente la carga requerida sin que esta pueda sobredimensionarse",null,null,null,null,null,null,null,null,null,null,null,null,null,null,null,null,null,null,null,null,null,null,null,null,null,null,null,null,null,null,null,null,null,null,null,null,0]
[null,32,"Los carros transportadores de tracción manual han sido diseñados para ser empujados. La fuerza inicial y sostenida para empujarlos puede ejecutarse sin movimientos bruscos o en falso y, manteniendo miembros superiores en ángulos confortables y los pies a menos de 100 cm. con respecto a los puntos de agarre",null,null,null,null,null,null,null,null,null,null,null,null,null,null,null,null,null,null,null,null,null,null,null,null,null,null,null,null,null,null,null,null,null,null,null,null,0]
[null,33,"Los carros transportadores de tracción manual presentan tamaños acordes con los espacios de desplazamiento de las instalaciones, facilitando la maniobrabilidad",null,null,null,null,null,null,null,null,null,null,null,null,null,null,null,null,null,null,null,null,null,null,null,null,null,null,null,null,null,null,null,null,null,null,null,null,0]
[null,34,"Los carros transportadores de tracción manual presentan bordes, aristas y esquinas redondeadas para reducir puntos de presión en las manos y disminuir la probabilidad de lesión en caso de un choque accidental.",null,null,null,null,null,null,null,null,null,null,null,null,null,null,null,null,null,null,null,null,null,null,null,null,null,null,null,null,null,null,null,null,null,null,null,null,0]
[null,35,"Los carros transportadores de tracción manual presentan manijas o asas a distancias inferiores al ancho del carro y se disponen en diferentes posiciones que permiten agarre a mano llena (involucrando palma de la mano, dedos y pulgar). Dimensiones: largo >12,7 cm. diámetro 0,38 cm. a 0,50 cm.",null,null,null,null,null,null,null,null,null,null,null,null,null,null,null,null,null,null,null,null,null,null,null,null,null,null,null,null,null,null,null,null,null,null,null,null,0]
[null,36,"Los carros transportadores de tracción manual presentan ruedas de diámetro máximo 12,7 cm., con material y recubrimiento exterior conforme a las condiciones del piso donde serán utilizados, siendo fijas las delanteras y giratorias las traseras para largos recorridos o, giratorias las cuatro para recorridos cortos en espacios pequeños <4m2",null,null,null,null,null,null,null,null,null,null,null,null,null,null,null,null,null,null,null,null,null,null,null,null,null,null,null,null,null,null,null,null,null,null,null,null,0]
[null,37,"Las ayudas mecánicas para manipulación de cargas en sentido vertical y horizontal han sido seleccionadas de manera que su empleo conserva los requerimientos de producción y calidad",null,null,null,null,null,null,null,null,null,null,null,null,null,null,null,null,null,null,null,null,null,null,null,null,null,null,null,null,null,null,null,null,null,null,null,null,0]
[null,38,"Se controla la exposición a peligros mecánicos durante la tarea de MMC ",null,null,null,null,null,null,null,null,null,null,null,null,null,null,null,null,null,null,null,null,null,null,null,null,null,null,null,null,null,null,null,null,null,null,null,null,0]
["DETERMINANTE AMBIENTAL",39,"Se conservan amplios, ordenados y libres de obstáculos los espacios donde se ejecuta MMC ",null,null,null,null,null,null,null,null,null,null,null,null,null,null,null,null,null,null,null,null,null,null,null,null,null,null,null,null,null,null,null,null,null,null,null,null,0]
[null,40,"Los espacios de las áreas de almacenamiento permiten evitar la remanipulación de cargas y mantener las condiciones de orden y accesibilidad a las mismas",null,null,null,null,null,null,null,null,null,null,null,null,null,null,null,null,null,null,null,null,null,null,null,null,null,null,null,null,null,null,null,null,null,null,null,null,0]
[null,41,"Los pisos son estables, antideslizantes, sin cambios de nivel y con demarcación, que permite realizar la MMC bajo condiciones de seguridad",null,null,null,null,null,null,null,null,null,null,null,null,null,null,null,null,null,null,null,null,null,null,null,null,null,null,null,null,null,null,null,null,null,null,null,null,0]
[null,42,"Los espacios que necesariamente presentan cambios de nivel se mantienen debidamente demarcados y libres de obstáculos",null,null,null,null,null,null,null,null,null,null,null,null,null,null,null,null,null,null,null,null,null,null,null,null,null,null,null,null,null,null,null,null,null,null,null,null,0]
[null,43,"Las condiciones de iluminación general favorecen la visibilidad de información de las cargas, así como de los espacios donde se ejecuta MMC",null,null,null,null,null,null,null,null,null,null,null,null,null,null,null,null,null,null,null,null,null,null,null,null,null,null,null,null,null,null,null,null,null,null,null,null,0]
[null,44,"Se percibe confort térmico en las áreas donde se ejecuta la tarea de MMC",null,null,null,null,null,null,null,null,null,null,null,null,null,null,null,null,null,null,null,null,null,null,null,null,null,null,null,null,null,null,null,null,null,null,null,null,0]
[null,45,"La MMC se realiza de forma suficientemente aislada con relación a equipos de alta emisión de calor o superficies calientes",null,null,null,null,null,null,null,null,null,null,null,null,null,null,null,null,null,null,null,null,null,null,null,null,null,null,null,null,null,null,null,null,null,null,null,null,0]
[null,46,"La exigencia de MMC con exposición a bajas temperaturas se controla mediante el uso de elementos de protección personal eficientes y que permiten la ejecución de adecuados procedimientos biomecánicos.",null,null,null,null,null,null,null,null,null,null,null,null,null,null,null,null,null,null,null,null,null,null,null,null,null,null,null,null,null,null,null,null,null,null,null,null,0]
[null,47,"Las áreas donde se ejecuta MMC son suficientemente ventiladas y se encuentran libres o en condiciones controladas de contaminación por material particulado, humos, vapores, entre otros.",null,null,null,null,null,null,null,null,null,null,null,null,null,null,null,null,null,null,null,null,null,null,null,null,null,null,null,null,null,null,null,null,null,null,null,null,0]
[null,48,"Los niveles de ruido en las áreas  donde se realiza MMC permiten la comunicación durante el  trabajo en equipo",null,null,null,null,null,null,null,null,null,null,null,null,null,null,null,null,null,null,null,null,null,null,null,null,null,null,null,null,null,null,null,null,null,null,null,null,0]
[null,49,"La MMC se realiza sin exposición a vibración",null,null,null,null,null,null,null,null,null,null,null,null,null,null,null,null,null,null,null,null,null,null,null,null,null,null,null,null,null,null,null,null,null,null,null,null,0]

{"sheet":"PLAN DE ACCIÓN","index":6,"n_rows":8,"n_cols":9,"rows_kept":8,"cut":false,"hidden":false,"merged":[[1,0,1,8]]}
[]
["Herramienta de Evaluación Profunda\nPlan de acción"]
[]
[]
[]
["Estrategia de intervención","Prioridad de la aplicación","Responsable (s)","Cargo \nResponsable (s)","Fecha de inicio  implementación\n(dd/mm/aaaa)","Fecha de finalización de la implementación\n(dd/mm/aaaa)","Indicadores de seguimiento","Resultado Meta","Fecha de seguimiento\n(dd/mm/aaaa)"]
["(en blanco)"]
["Total general"]

{"sheet":"PONDERACIONES","index":7,"n_rows":1123,"n_cols":2,"rows_kept":1123,"cut":false,"hidden":true,"merged":[]}
["Municipio","Indicadores de seguimiento plan de acción"]
["Abejorral","Cobertura de trabajadores"]
["Abrego","Cobertura de áreas"]
["Abriaquí","Reducción del grado de riesgo"]
["Acacías","Incidencia"]
["Acandí","Prevalencia"]
["Acevedo","Ausentismo"]
["Achí","Cumplimiento de actividades"]
["Agrado"]
["Agua de Dios"]
["Aguachica"]
["Aguada"]
["Aguadas"]
["Aguazul"]
["Agustín Codazzi"]
["Aipe"]
["Albán"]
["Albán"]
["Albania"]
["Albania"]
["Albania"]
["Alcalá"]
["Aldana"]
["Alejandría"]
["Algarrobo"]
["Algeciras"]
["Almaguer"]
["Almeida"]
["Alpujarra"]
["Altamira"]
["Alto Baudo"]
["Altos del Rosario"]
["Alvarado"]
["Amagá"]
["Amalfi"]
["Ambalema"]
["Anapoima"]
["Ancuyá"]
["Andalucía"]
["Andes"]
["Angelópolis"]
["Angostura"]
["Anolaima"]
["Anorí"]
["Anserma"]
["Ansermanuevo"]
["Anza"]
["Anzoátegui"]
["Apartadó"]
["Apía"]
["Apulo"]
["Aquitania"]
["Aracataca"]
["Aranzazu"]
["Aratoca"]
["Arauca"]
["Arauquita"]
["Arbeláez"]
["Arboleda"]
["Arboledas"]
["Arboletes"]
["Arcabuco"]
["Arenal"]
["Argelia"]
["Argelia"]
["Argelia"]
["Ariguaní"]
["Arjona"]
["Armenia"]
["Armenia"]
["Armero"]
["Arroyohondo"]
["Astrea"]
["Ataco"]
["Atrato"]
["Ayapel"]
["Bagadó"]
["Bahía Solano"]
["Bajo Baudó"]
["Balboa"]
["Balboa"]
["Baranoa"]
["Baraya"]
["Barbacoas"]
["Barbosa"]
["Barbosa"]
["Barichara"]
["Barranca de Upía"]
["Barrancabermeja"]
["Barrancas"]
["Barranco de Loba"]
["Barranco Minas (CD)"]
["Barranquilla"]
["Becerril"]
["Belalcázar"]
["Belén"]
["Belén"]
["Belén de Los Andaquies"]
["Belén de Umbría"]
["Bello"]
["Belmira"]
["Beltrán"]
["Berbeo"]
["Betania"]
["Betéitiva"]
["Betulia"]
["Betulia"]
["Bituima"]
["Boavita"]
["Bochalema"]
["Bogotá, D.C."]
["Bojacá"]
["Bojaya"]
["Bolívar"]
["Bolívar"]
["Bolívar"]
["Bosconia"]
["Boyacá"]
["Briceño"]
["Briceño"]
["Bucaramanga"]
["Bucarasica"]
["Buenaventura"]
["Buenavista"]
["Buenavista"]
["Buenavista"]
["Buenavista"]
["Buenos Aires"]
["Buesaco"]
["Bugalagrande"]
["Buriticá"]
["Busbanzá"]
["Cabrera"]
["Cabrera"]
["Cabuyaro"]
["Cacahual (CD)"]
["Cáceres"]
["Cachipay"]
["Cachirá"]
["Cácota"]
["Caicedo"]
["Caicedonia"]
["Caimito"]
["Cajamarca"]
["Cajibío"]
["Cajicá"]
["Calamar"]
["Calamar"]
["Calarca"]
["Caldas"]
["Caldas"]
["Caldono"]
["Cali"]
["California"]
["Calima"]
["Caloto(1)(3)"]
["Campamento"]
["Campo de La Cruz"]
["Campoalegre"]
["Campohermoso"]
["Canalete"]
["Candelaria"]
["Candelaria"]
["Cantagallo"]
["Cañasgordas"]
["Caparrapí"]
["Capitanejo"]
["Caqueza"]
["Caracolí"]
["Caramanta"]
["Carcasí"]
["Carepa"]
["Carmen de Apicalá"]
["Carmen de Carupa"]
["Carmen del Darien"]
["Carolina"]
["Cartagena"]
["Cartagena del Chairá"]
["Cartago"]
["Caruru"]
["Casabianca"]
["Castilla la Nueva"]
["Caucasia"]
["Cepitá"]
["Cereté"]
["Cerinza"]
["Cerrito"]
["Cerro San Antonio"]
["Cértegui"]
["Chachagüí"]
["Chaguaní"]
["Chalán"]
["Chameza"]
["Chaparral"]
["Charalá"]
["Charta"]
["Chía"]
["Chigorodó"]
["Chima"]
["Chimá"]
["Chimichagua"]
["Chinácota"]
["Chinavita"]
["Chinchiná"]
["Chinú"]
["Chipaque"]
["Chipatá"]
["Chiquinquirá"]
["Chíquiza"]
["Chiriguaná"]
["Chiscas"]
["Chita"]
["Chitagá"]
["Chitaraque"]
["Chivatá"]
["Chivolo"]
["Chivor"]
["Choachí"]
["Chocontá"]
["Cicuco"]
["Ciénaga"]
["Ciénaga de Oro"]
["Ciénega"]
["Cimitarra"]
["Circasia"]
["Cisneros"]
["Ciudad Bolívar"]
["Clemencia"]
["Cocorná"]
["Coello"]
["Cogua"]
["Colombia"]
["Colón"]
["Colón"]
["Coloso"]
["Cómbita"]
["Concepción"]
["Concepción"]
["Concordia"]
["Concordia"]
["Condoto"]
["Confines"]
["Consaca"]
["Contadero"]
["Contratación"]
["Convención"]
["Copacabana"]
["Coper"]
["Córdoba"]
["Córdoba"]
["Córdoba"]
["Corinto"]
["Coromoro"]
["Corozal"]
["Corrales"]
["Cota"]
["Cotorra"]
["Covarachía"]
["Coveñas"]
["Coyaima"]
["Cravo Norte"]
["Cuaspud"]
["Cubará"]
["Cubarral"]
["Cucaita"]
["Cucunubá"]
["Cúcuta"]
["Cucutilla"]
["Cuítiva"]
["Cumaral"]
["Cumaribo"]
["Cumbal"]
["Cumbitara"]
["Cunday"]
["Curillo"]
["Curití"]
["Curumaní"]
["Dabeiba"]
["Dagua"]
["Dibulla"]
["Distracción"]
["Dolores"]
["Don Matías"]
["Dosquebradas"]
["Duitama"]
["Durania"]
["Ebéjico"]
["El Águila"]
["El Bagre"]
["El Banco"]
["El Cairo"]
["El Calvario"]
["El Cantón del San Pablo"]
["El Carmen"]
["El Carmen de Atrato"]
["El Carmen de Bolívar"]
["El Carmen de Chucurí"]
["El Carmen de Viboral"]
["El Castillo"]
["El Cerrito"]
["El Charco"]
["El Cocuy"]
["El Colegio"]
["El Copey"]
["El Doncello"]
["El Dorado"]
["El Dovio"]
["El Encanto (CD)"]
["El Espino"]
["El Guacamayo"]
["El Guamo"]
["El Litoral del San Juan"]
["El Molino"]
["El Paso"]
["El Paujil"]
["El Peñol"]
["El Peñón"]
["El Peñón"]
["El Peñón"]
["El Piñon"]
["El Playón"]
["El Retén"]
["El Retorno"]
["El Roble"]
["El Rosal"]
["El Rosario"]
["El Santuario"]
["El Tablón de Gómez"]
["El Tambo"]
["El Tambo"]
["El Tarra"]
["El Zulia"]
["Elías"]
["Encino"]
["Enciso"]
["Entrerrios"]
["Envigado"]
["Espinal"]
["Facatativá"]
["Falan"]
["Filadelfia"]
["Filandia"]
["Firavitoba"]
["Flandes"]
["Florencia"]
["Florencia"]
["Floresta"]
["Florián"]
["Florida"]
["Floridablanca"]
["Fomeque"]
["Fonseca"]
["Fortul"]
["Fosca"]
["Francisco Pizarro"]
["Fredonia"]
["Fresno"]
["Frontino"]
["Fuente de Oro"]
["Fundación"]
["Funes"]
["Funza"]
["Fúquene"]
["Fusagasugá"]
["Gachala"]
["Gachancipá"]
["Gachantivá"]
["Gachetá"]
["Galán"]
["Galapa"]
["Galeras"]
["Gama"]
["Gamarra"]
["Gambita"]
["Gameza"]
["Garagoa"]
["Garzón"]
["Génova"]
["Gigante"]
["Ginebra"]
["Giraldo"]
["Girardot"]
["Girardota"]
["Girón"]
["Gómez Plata"]
["González"]
["Gramalote"]
["Granada"]
["Granada"]
["Granada"]
["Guaca"]
["Guacamayas"]
["Guacarí"]
["Guachené (1) "]
["Guachetá"]
["Guachucal"]
["Guadalajara de Buga"]
["Guadalupe"]
["Guadalupe"]
["Guadalupe"]
["Guaduas"]
["Guaitarilla"]
["Gualmatán"]
["Guamal"]
["Guamal"]
["Guamo"]
["Guapi"]
["Guapotá"]
["Guaranda"]
["Guarne"]
["Guasca"]
["Guatapé"]
["Guataquí"]
["Guatavita"]
["Guateque"]
["Guática"]
["Guavatá"]
["Guayabal de Siquima"]
["Guayabetal"]
["Guayatá"]
["Güepsa"]
["Güicán"]
["Gutiérrez"]
["Hacarí"]
["Hatillo de Loba"]
["Hato"]
["Hato Corozal"]
["Hatonuevo"]
["Heliconia"]
["Herrán"]
["Herveo"]
["Hispania"]
["Hobo"]
["Honda"]
["Ibagué"]
["Icononzo"]
["Iles"]
["Imués"]
["Inírida"]
["Inzá"]
["Ipiales"]
["Iquira"]
["Isnos"]
["Istmina"]
["Itagui"]
["Ituango"]
["Iza"]
["Jambaló"]
["Jamundí"]
["Jardín"]
["Jenesano"]
["Jericó"]
["Jericó"]
["Jerusalén"]
["Jesús María"]
["Jordán"]
["Juan de Acosta"]
["Junín"]
["Juradó"]
["La Apartada"]
["La Argentina"]
["La Belleza"]
["La Calera"]
["La Capilla"]
["La Ceja"]
["La Celia"]
["La Chorrera (CD)"]
["La Cruz"]
["La Cumbre"]
["La Dorada"]
["La Esperanza"]
["La Estrella"]
["La Florida"]
["La Gloria"]
["La Guadalupe (CD)"]
["La Jagua de Ibirico"]
["La Jagua del Pilar"]
["La Llanada"]
["La Macarena"]
["La Merced"]
["La Mesa"]
["La Montañita"]
["La Palma"]
["La Paz"]
["La Paz"]
["La Pedrera (CD)"]
["La Peña"]
["La Pintada"]
["La Plata"]
["La Playa"]
["La Primavera"]
["La Salina"]
["La Sierra"]
["La Tebaida"]
["La Tola"]
["La Unión"]
["La Unión"]
["La Unión"]
["La Unión"]
["La Uvita"]
["La Vega"]
["La Vega"]
["La Victoria"]
["La Victoria"]
["La Victoria (CD)"]
["La Virginia"]
["Labateca"]
["Labranzagrande"]
["Landázuri"]
["Lebríja"]
["Leguízamo"]
["Leiva"]
["Lejanías"]
["Lenguazaque"]
["Lérida"]
["Leticia"]
["Líbano"]
["Liborina"]
["Linares"]
["Lloró"]
["López"]
["Lorica"]
["Los Andes"]
["Los Córdobas"]
["Los Palmitos"]
["Los Patios"]
["Los Santos"]
["Lourdes"]
["Luruaco"]
["Macanal"]
["Macaravita"]
["Maceo"]
["Macheta"]
["Madrid"]
["Magangué"]
["Magüi"]
["Mahates"]
["Maicao"]
["Majagual"]
["Málaga"]
["Malambo"]
["Mallama"]
["Manatí"]
["Manaure"]
["Manaure"]
["Maní"]
["Manizales"]
["Manta"]
["Manzanares"]
["Mapiripán"]
["Mapiripana (CD)"]
["Margarita"]
["María La Baja"]
["Marinilla"]
["Maripí"]
["Mariquita"]
["Marmato"]
["Marquetalia"]
["Marsella"]
["Marulanda"]
["Matanza"]
["Medellín"]
["Medina"]
["Medio Atrato"]
["Medio Baudó"]
["Medio San Juan"]
["Melgar"]
["Mercaderes"]
["Mesetas"]
["Milán"]
["Miraflores"]
["Miraflores"]
["Miranda"]
["Miriti - Paraná (CD)"]
["Mistrató"]
["Mitú"]
["Mocoa"]
["Mogotes"]
["Molagavita"]
["Momil"]
["Mompós"]
["Mongua"]
["Monguí"]
["Moniquirá"]
["Montebello"]
["Montecristo"]
["Montelíbano(1)(3)"]
["Montenegro"]
["Montería"]
["Monterrey"]
["Moñitos"]
["Morales"]
["Morales"]
["Morelia"]
["Morichal (CD)"]
["Morroa"]
["Mosquera"]
["Mosquera"]
["Motavita"]
["Murillo"]
["Murindó"]
["Mutatá"]
["Mutiscua"]
["Muzo"]
["Nariño"]
["Nariño"]
["Nariño"]
["Nátaga"]
["Natagaima"]
["Nechí"]
["Necoclí"]
["Neira"]
["Neiva"]
["Nemocón"]
["Nilo"]
["Nimaima"]
["Nobsa"]
["Nocaima"]
["Norcasia"]
["Norosí (1)"]
["Nóvita"]
["Nueva Granada"]
["Nuevo Colón"]
["Nunchía"]
["Nuquí"]
["Obando"]
["Ocamonte"]
["Ocaña"]
["Oiba"]
["Oicatá"]
["Olaya"]
["Olaya Herrera"]
["Onzaga"]
["Oporapa"]
["Orito"]
["Orocué"]
["Ortega"]
["Ospina"]
["Otanche"]
["Ovejas"]
["Pachavita"]
["Pacho"]
["Pacoa (CD)"]
["Pácora"]
["Padilla"]
["Paez"]
["Páez"]
["Paicol"]
["Pailitas"]
["Paime"]
["Paipa"]
["Pajarito"]
["Palermo"]
["Palestina"]
["Palestina"]
["Palmar"]
["Palmar de Varela"]
["Palmas del Socorro"]
["Palmira"]
["Palmito"]
["Palocabildo"]
["Pamplona"]
["Pamplonita"]
["Pana Pana (CD)"]
["Pandi"]
["Panqueba"]
["Papunaua (CD)"]
["Páramo"]
["Paratebueno"]
["Pasca"]
["Pasto"]
["Patía"]
["Pauna"]
["Paya"]
["Paz de Ariporo"]
["Paz de Río"]
["Pedraza"]
["Pelaya"]
["Pensilvania"]
["Peñol"]
["Peque"]
["Pereira"]
["Pesca"]
["Piamonte"]
["Piedecuesta"]
["Piedras"]
["Piendamó"]
["Pijao"]
["Pijiño del Carmen"]
["Pinchote"]
["Pinillos"]
["Piojó"]
["Pisba"]
["Pital"]
["Pitalito"]
["Pivijay"]
["Planadas"]
["Planeta Rica"]
["Plato"]
["Policarpa"]
["Polonuevo"]
["Ponedera"]
["Popayán"]
["Pore"]
["Potosí"]
["Pradera"]
["Prado"]
["Providencia"]
["Providencia"]
["Pueblo Bello"]
["Pueblo Nuevo"]
["Pueblo Rico"]
["Pueblorrico"]
["Puebloviejo"]
["Puente Nacional"]
["Puerres"]
["Puerto Alegría (CD)"]
["Puerto Arica (CD)"]
["Puerto Asís"]
["Puerto Berrío"]
["Puerto Boyacá"]
["Puerto Caicedo"]
["Puerto Carreño"]
["Puerto Colombia"]
["Puerto Colombia (CD)"]
["Puerto Concordia"]
["Puerto Escondido"]
["Puerto Gaitán"]
["Puerto Guzmán"]
["Puerto Libertador"]
["Puerto Lleras"]
["Puerto López"]
["Puerto Nare"]
["Puerto Nariño"]
["Puerto Parra"]
["Puerto Rico"]
["Puerto Rico"]
["Puerto Rondón"]
["Puerto Salgar"]
["Puerto Santander"]
["Puerto Santander (CD)"]
["Puerto Tejada"]
["Puerto Triunfo"]
["Puerto Wilches"]
["Pulí"]
["Pupiales"]
["Puracé"]
["Purificación"]
["Purísima"]
["Quebradanegra"]
["Quetame"]
["Quibdó"]
["Quimbaya"]
["Quinchía"]
["Quípama"]
["Quipile"]
["Ragonvalia"]
["Ramiriquí"]
["Ráquira"]
["Recetor"]
["Regidor"]
["Remedios"]
["Remolino"]
["Repelón"]
["Restrepo"]
["Restrepo"]
["Retiro"]
["Ricaurte"]
["Ricaurte"]
["Río de Oro"]
["Río Iro"]
["Río Quito"]
["Río Viejo (1)(3)"]
["Rioblanco"]
["Riofrío"]
["Riohacha"]
["Rionegro"]
["Rionegro"]
["Riosucio"]
["Riosucio(2)"]
["Risaralda"]
["Rivera"]
["Roberto Payán"]
["Roldanillo"]
["Roncesvalles"]
["Rondón"]
["Rosas"]
["Rovira"]
["Sabana de Torres"]
["Sabanagrande"]
["Sabanalarga"]
["Sabanalarga"]
["Sabanalarga"]
["Sabanas de San Angel"]
["Sabaneta"]
["Saboyá"]
["Sácama"]
["Sáchica"]
["Sahagún"]
["Saladoblanco"]
["Salamina"]
["Salamina"]
["Salazar"]
["Saldaña"]
["Salento"]
["Salgar"]
["Samacá"]
["Samaná"]
["Samaniego"]
["Sampués"]
["San Agustín"]
["San Alberto"]
["San Andrés"]
["San Andrés"]
["San Andrés de Cuerquía"]
["San Andres de Tumaco"]
["San Andrés Sotavento (1) (3)"]
["San Antero"]
["San Antonio"]
["San Antonio del Tequendama"]
["San Benito"]
["San Benito Abad"]
["San Bernardo"]
["San Bernardo"]
["San Bernardo del Viento"]
["San Calixto"]
["San Carlos"]
["San Carlos"]
["San Carlos de Guaroa"]
["San Cayetano"]
["San Cayetano"]
["San Cristóbal"]
["San Diego"]
["San Eduardo"]
["San Estanislao"]
["San Felipe (CD)"]
["San Fernando"]
["San Francisco"]
["San Francisco"]
["San Francisco"]
["San Gil"]
["San Jacinto"]
["San Jacinto del Cauca"]
["San Jerónimo"]
["San Joaquín"]
["San José"]
["San José de La Montaña"]
["San José de Miranda"]
["San José de Pare"]
["San José de Uré(1)"]
["San José del Fragua"]
["San José del Guaviare"]
["San José del Palmar"]
["San Juan de Arama"]
["San Juan de Betulia"]
["San Juan de Río Seco"]
["San Juan de Urabá"]
["San Juan del Cesar"]
["San Juan Nepomuceno"]
["San Juanito"]
["San Lorenzo"]
["San Luis"]
["San Luis"]
["San Luis de Gaceno"]
["San Luis de Palenque"]
["San Luis de Sincé"]
["San Marcos"]
["San Martín"]
["San Martín"]
["San Martín de Loba"]
["San Mateo"]
["San Miguel"]
["San Miguel"]
["San Miguel de Sema"]
["San Onofre"]
["San Pablo"]
["San Pablo"]
["San Pablo de Borbur"]
["San Pedro"]
["San Pedro"]
["San Pedro"]
["San Pedro de Cartago"]
["San Pedro de Uraba"]
["San Pelayo"]
["San Rafael"]
["San Roque"]
["San Sebastián"]
["San Sebastián de Buenavista"]
["San Vicente"]
["San Vicente de Chucurí"]
["San Vicente del Caguán"]
["San Zenón"]
["Sandoná"]
["Santa Ana"]
["Santa Bárbara"]
["Santa Bárbara"]
["Santa Bárbara"]
["Santa Bárbara de Pinto"]
["Santa Catalina"]
["Santa Helena del Opón"]
["Santa Isabel"]
["Santa Lucía"]
["Santa María"]
["Santa María"]
["Santa Marta"]
["Santa Rosa"]
["Santa Rosa"]
["Santa Rosa de Cabal"]
["Santa Rosa de Osos"]
["Santa Rosa de Viterbo"]
["Santa Rosa del Sur"]
["Santa Rosalía"]
["Santa Sofía"]
["Santacruz"]
["Santafé de Antioquia"]
["Santana"]
["Santander de Quilichao"]
["Santiago"]
["Santiago"]
["Santiago de Tolú"]
["Santo Domingo"]
["Santo Tomás"]
["Santuario"]
["Sapuyes"]
["Saravena"]
["Sardinata"]
["Sasaima"]
["Sativanorte"]
["Sativasur"]
["Segovia"]
["Sesquilé"]
["Sevilla"]
["Siachoque"]
["Sibaté"]
["Sibundoy"]
["Silos"]
["Silvania"]
["Silvia"]
["Simacota"]
["Simijaca"]
["Simití"]
["Sincelejo"]
["Sipí"]
["Sitionuevo"]
["Soacha"]
["Soatá"]
["Socha"]
["Socorro"]
["Socotá"]
["Sogamoso"]
["Solano"]
["Soledad"]
["Solita"]
["Somondoco"]
["Sonson"]
["Sopetrán"]
["Soplaviento"]
["Sopó"]
["Sora"]
["Soracá"]
["Sotaquirá"]
["Sotara"]
["Suaita"]
["Suan"]
["Suárez"]
["Suárez"]
["Suaza"]
["Subachoque"]
["Sucre"]
["Sucre"]
["Sucre"]
["Suesca"]
["Supatá"]
["Supía"]
["Suratá"]
["Susa"]
["Susacón"]
["Sutamarchán"]
["Sutatausa"]
["Sutatenza"]
["Tabio"]
["Tadó"]
["Talaigua Nuevo"]
["Tamalameque"]
["Támara"]
["Tame"]
["Támesis"]
["Taminango"]
["Tangua"]
["Taraira"]
["Tarapacá (CD)"]
["Tarazá"]
["Tarqui"]
["Tarso"]
["Tasco"]
["Tauramena"]
["Tausa"]
["Tello"]
["Tena"]
["Tenerife"]
["Tenjo"]
["Tenza"]
["Teorama"]
["Teruel"]
["Tesalia"]
["Tibacuy"]
["Tibaná"]
["Tibasosa"]
["Tibirita"]
["Tibú"]
["Tierralta"]
["Timaná"]
["Timbío"]
["Timbiquí"]
["Tinjacá"]
["Tipacoque"]
["Tiquisio"]
["Titiribí"]
["Toca"]
["Tocaima"]
["Tocancipá"]
["Togüí"]
["Toledo"]
["Toledo"]
["Tolú Viejo"]
["Tona"]
["Tópaga"]
["Topaipí"]
["Toribio"]
["Toro"]
["Tota"]
["Totoró"]
["Trinidad"]
["Trujillo"]
["Tubará"]
["Tuchín (1)"]
["Tuluá"]
["Tunja"]
["Tununguá"]
["Túquerres"]
["Turbaco"]
["Turbaná"]
["Turbo"]
["Turmequé"]
["Tuta"]
["Tutazá"]
["Ubalá"]
["Ubaque"]
["Ulloa"]
["Umbita"]
["Une"]
["Unguía"]
["Unión Panamericana"]
["Uramita"]
["Uribe"]
["Uribia"]
["Urrao"]
["Urumita"]
["Usiacurí"]
["Útica"]
["Valdivia"]
["Valencia"]
["Valle de San José"]
["Valle de San Juan"]
["Valle del Guamuez"]
["Valledupar"]
["Valparaíso"]
["Valparaíso"]
["Vegachí"]
["Vélez"]
["Venadillo"]
["Venecia"]
["Venecia"]
["Ventaquemada"]
["Vergara"]
["Versalles"]
["Vetas"]
["Vianí"]
["Victoria"]
["Vigía del Fuerte"]
["Vijes"]
["Villa Caro"]
["Villa de Leyva"]
["Villa de San Diego de Ubate"]
["Villa del Rosario"]
["Villa Rica"]
["Villagarzón"]
["Villagómez"]
["Villahermosa"]
["Villamaría"]
["Villanueva"]
["Villanueva"]
["Villanueva"]
["Villanueva"]
["Villapinzón"]
["Villarrica"]
["Villavicencio"]
["Villavieja"]
["Villeta"]
["Viotá"]
["Viracachá"]
["Vistahermosa"]
["Viterbo"]
["Yacopí"]
["Yacuanquer"]
["Yaguará"]
["Yalí"]
["Yarumal"]
["Yavaraté (CD)"]
["Yolombó"]
["Yondó"]
["Yopal"]
["Yotoco"]
["Yumbo"]
["Zambrano"]
["Zapatoca"]
["Zapayán"]
["Zaragoza"]
["Zarzal"]
["Zetaquira"]
["Zipacón"]
["Zipaquirá"]
["Zona Bananera"]